Cogmind - Beta 15 @@@ ROGUE MODE // 2025.08.17 @ 19:48:07 Player: FrigidRock Result: Assimilated 0b10! Performance ------------- Evolutions (9) 4500 Regions Visited (32) 6400 Robots Destroyed (271) 1355 Value Destroyed (9695) 9695 Prototype IDs (50) 1000 Alien Tech Used (0) 0 Bonus (21225) 21225 TOTAL SCORE: 44175 Bonus ------- High Alert Combat Kills 731 Follower Combat Kills 4491 Entered Garrisons 800 Used RIF Installer 1500 Met Data Miner 300 MAIN.C Attacked Warlord 500 Warlord Defense Kills 100 Built Enhanced Grunts 300 A7 Reached Mainframe 300 Met R17 at Cetus 500 Met R17 at Research 2000 Met MAIN.C 5000 Used 0b10 Conduit 2000 Win 3000 Friendly Fire -297 Cogmind --------- Core Integrity 1443/1600 Matter 239/300 Energy 504/825 System Corruption 0% Temperature Warm (164) Movement Flying (6) Location 0b10 Command Parts ------- > --- POWER (2) -------- Compact Particle Reactor Light Quantum Reactor > --- PROPULSION (8) --- Cooled Nuclear Pulse Thruster Improved Diametric Drive Cooled Impulse Thruster Cooled Impulse Thruster Impulse Thruster Array Cooled Q-thruster Experimental Q-thruster > --- UTILITY (12) ----- Advanced Heat Sink Experimental Coolant Injector Medium Storage Unit Experimental Energy Well Gravity Neutralizer Advanced ECM Suite Advanced Reaction Control System Improved Hacking Suite Advanced System Shield Relay Coupler [Grunt] (4) Relay Coupler [Hunter] (17) Improved System Guard > --- WEAPON (3) ------- Enhanced Nova Cannon > --- INVENTORY (10) --- Light Particle Reactor Impulse Thruster Long-range Terrain Scanner Improved Launcher Guidance Computer Enhanced Nova Cannon Enhanced Nova Cannon Enhanced Gamma Bomb Array Molecular Deconstructor Peak State ------------ > --- POWER ------------ Compact Particle Reactor Light Quantum Reactor > --- PROPULSION ------- Cooled Nuclear Pulse Thruster Improved Diametric Drive Cooled Impulse Thruster Cooled Impulse Thruster Impulse Thruster Array Cooled Q-thruster Experimental Q-thruster > --- UTILITY ---------- Advanced Heat Sink Experimental Coolant Injector Medium Storage Unit Experimental Energy Well Gravity Neutralizer Advanced Reaction Control System Improved Hacking Suite Advanced System Shield Relay Coupler [Grunt] Relay Coupler [Hunter] Improved System Guard > --- WEAPON ----------- Enhanced Nova Cannon Molecular Deconstructor > --- INVENTORY -------- Light Particle Reactor Impulse Thruster Long-range Terrain Scanner Improved Launcher Guidance Computer Advanced ECM Suite Enhanced Nova Cannon Enhanced Nova Cannon Enhanced Gamma Bomb Array [Rating: 184] Favorites ----------- Power Neutrino Core Engine Cooled Ion Engine Power Core Neutrino Core Reactor Quantum Reactor Propulsion Titanium Leg Treads Armored Treads Leg Titanium Leg Wheel Armored Wheel Hover Unit Improved Gyrokinetic Inverter Flight Unit Cooled Impulse Thruster Utility Relay Coupler [Hunter] Device Advanced Heat Sink Storage Large Storage Unit Processor Visual Processing Unit Hackware Relay Coupler [Hunter] Protection Centrium Medium Armor Plating Weapon Remote Datajack Energy Gun Heavy Particle Gun Energy Cannon Neutron Cannon Ballistic Gun Enhanced Autogun Ballistic Cannon Flak Cannon Launcher Long-range Missile Launcher Special Weapon Remote Datajack Impact Weapon Great Maul Slashing Weapon Katana Piercing Weapon Heavy Pick Special Melee Weapon Datajack Build | -11 -10 -10 -9 -9 -9 -8 -8 -8 -8 -8 -7 -7 -7 -7 -6 -6 -6 -6 -5 -5 -5 -5 -4 -4 -4 -4 -3 -3 -2 -2 -1 -1 ------- Run | Yrd Mat Min Mat Min Exi Min Mat Gar Mat Gar Fac Low Low Dat Pro Fac Ext Cet Fac Upp Upp War Pro Fac Gar Fac Res Tes Res Gar Acc Com Slots Evolved 18 | . . . 2 . . . 2 . . . 2 . . . . 2 . . 2 . . . . 2 . . 2 . 2 . 2 . Power 1 | . . . . . . . . . . . . . . . . . . . 1 . . . . . . . . . . . . . Propulsion 6 | . . . 1 . . . 1 . . . . . . . . . . . . . . . . 1 . . 1 . 1 . 1 . Utility 10 | . . . 1 . . . 1 . . . 2 . . . . 2 . . 1 . . . . 1 . . . . 1 . 1 . Weapon 1 | . . . . . . . . . . . . . . . . . . . . . . . . . . . 1 . . . . . Parts Attached 323 | 6 5 . 13 6 . 1 25 19 4 6 11 5 2 . 9 26 18 7 14 2 5 1 15 28 18 3 44 5 18 1 4 2 Power 34 | 1 1 . 1 1 . . 1 1 1 . . 2 . . 1 3 2 1 . . 1 . 2 2 2 . 8 . 2 . 1 . Engine 13 | 1 1 . 1 1 . . 1 1 1 . . 2 . . 1 3 . . . . . . . . . . . . . . . . Core 8 | . . . . . . . . . . . . . . . . . 2 . . . 1 . 2 . 2 . 1 . . . . . Reactor 13 | . . . . . . . . . . . . . . . . . . 1 . . . . . 2 . . 7 . 2 . 1 . Propulsion 88 | 2 2 . 1 1 . 1 10 3 1 . 4 . 1 . 4 9 8 1 1 1 1 . 6 9 3 1 10 1 5 1 1 . Treads 13 | . . . . . . . . . 1 . . . 1 . 3 2 1 1 1 1 1 . . . 1 . . . . . . . Leg 31 | 2 . . . . . . 8 3 . . 1 . . . 1 2 7 . . . . . 5 . 2 . . . . . . . Wheel 14 | . 2 . 1 1 . 1 2 . . . 3 . . . . 4 . . . . . . . . . . . . . . . . Hover 11 | . . . . . . . . . . . . . . . . 1 . . . . . . 1 7 . . 2 . . . . . Flight 19 | . . . . . . . . . . . . . . . . . . . . . . . . 2 . 1 8 1 5 1 1 . Utility 117 | 1 2 . 5 3 . . 4 9 2 5 5 2 1 . 3 6 4 3 6 1 2 1 4 12 5 1 19 1 7 . 2 1 Device 39 | . . . 1 2 . . 1 2 . . 1 . 1 . . . . 1 2 . 2 . 2 7 . . 10 . 5 . 2 . Storage 14 | 1 1 . 1 . . . . . . . 1 . . . . 1 . . 2 . . . . 2 1 . 3 1 . . . . Processor 14 | . 1 . 2 1 . . . 1 . . 2 . . . . 2 . . . 1 . . . 2 . . 2 . . . . . Hackware 36 | . . . . . . . 1 5 2 4 1 2 . . 3 3 . . 2 . . 1 1 1 3 1 3 . 2 . . 1 Protection 14 | . . . 1 . . . 2 1 . 1 . . . . . . 4 2 . . . . 1 . 1 . 1 . . . . . Artifact . | . . . . . . . . . . . . . . . . . . . . . . . . . . . . . . . . . Weapon 84 | 2 . . 6 1 . . 10 6 . 1 2 1 . . 1 8 4 2 7 . 1 . 3 5 8 1 7 3 4 . . 1 Energy Gun 16 | . . . 2 . . . 5 . . . . . . . . . 2 1 1 . . . 1 . 1 1 2 . . . . . Energy Cannon 17 | . . . . . . . . . . . . . . . . 1 . . 3 . 1 . . 4 . . 3 3 1 . . 1 Ballistic Gun 12 | 2 . . 2 . . . 3 . . . . . . . . 1 1 1 1 . . . . . . . 1 . . . . . Ballistic Cannon 16 | . . . 2 . . . . 2 . . 1 . . . . 3 . . . . . . . 1 6 . . . 1 . . . Launcher 8 | . . . . . . . 2 . . . 1 . . . 1 2 . . . . . . . . . . . . 2 . . . Special Weapon 9 | . . . . . . . . 2 . 1 . . . . . . . . 2 . . . 2 . 1 . 1 . . . . . Impact Weapon 1 | . . . . . . . . . . . . . . . . . 1 . . . . . . . . . . . . . . . Slashing Weapon 3 | . . . . 1 . . . 1 . . . 1 . . . . . . . . . . . . . . . . . . . . Piercing Weapon 1 | . . . . . . . . . . . . . . . . 1 . . . . . . . . . . . . . . . . Special Melee Weapon 1 | . . . . . . . . 1 . . . . . . . . . . . . . . . . . . . . . . . . Unidentified Prototypes 39 | . 1 . 4 . . . 3 . . . . . . . . 4 . 4 2 . . . 1 2 . . 6 5 5 . 2 . Corrupted Parts 5 | . . . . . . . . . . . . . . . . . . . . . . . 3 1 1 . . . . . . . System Corruption 27 | . . . . . . . . . . . . . . . . . . . . . . . 19 6 2 . . . . . . . Parts Lost 118 | . . . 3 3 . 1 12 5 . 2 . 1 1 . 2 20 4 . 1 1 1 8 12 8 8 12 2 1 7 2 . 1 Power 13 | . . . . 1 . . 1 1 . . . . . . . 4 . . . . . . 2 . 2 1 . . 1 . . . Propulsion 43 | . . . . 1 . 1 3 3 . 2 . 1 1 . 2 8 1 . . . 1 2 3 3 3 4 2 . 2 . . . Utility 39 | . . . 2 1 . . 4 1 . . . . . . . 3 2 . . 1 . 4 4 3 2 7 . 1 2 1 . 1 Weapon 23 | . . . 1 . . . 4 . . . . . . . . 5 1 . 1 . . 2 3 2 1 . . . 2 1 . . Highest Loss Streak 12 | . . . 1 1 . 1 5 2 . 2 . 1 1 . 2 4 2 . 1 1 1 8 4 4 4 12 1 1 5 7 . 1 To Critical Strikes 2 | . . . . . . . . . . . . . 1 . . 1 . . . . . . . . . . . . . . . . Average Backups 12 | . 3 6 8 14 14 13 13 14 14 14 14 19 22 24 22 15 8 9 9 9 10 9 5 6 9 10 4 7 7 6 4 8 Power 1 | . 1 2 2 1 1 1 . . 1 1 1 2 4 4 4 2 . 1 . 1 . . . . . . . 1 . . . 1 Propulsion . | . . 2 1 2 2 1 2 . . . . . 1 3 1 . 1 1 . . . . . . . . . 1 1 1 . . Utility 6 | . . 1 3 6 6 6 5 9 9 9 11 11 12 13 11 8 4 4 4 3 3 3 1 2 3 5 1 3 2 2 2 3 Weapon 2 | . . . 1 4 4 4 2 2 2 1 1 2 2 2 3 2 . 1 2 3 3 3 1 1 4 2 1 1 3 2 1 3 Tool/Special . | . . . . . . . . . . . . . . . . . . . . . . . . . . . . . . . . . Unused Backups 39 | . 1 . . . . . 5 7 1 . . 1 . . 2 2 . 2 . . . . . 3 . 5 2 1 1 . . 6 Power 4 | . 1 . . . . . . . . . . 1 . . . 1 . 1 . . . . . . . . . . . . . . Propulsion 7 | . . . . . . . . 1 . . . . . . 2 . . 1 . . . . . . . . . 1 1 . . 1 Utility 17 | . . . . . . . 1 5 1 . . . . . . 1 . . . . . . . 1 . 5 1 . . . . 2 Weapon 11 | . . . . . . . 4 1 . . . . . . . . . . . . . . . 2 . . 1 . . . . 3 Tool/Special . | . . . . . . . . . . . . . . . . . . . . . . . . . . . . . . . . . Average Slot Usage (%) 89 | . 95 100 97 95 88 86 95 94 89 88 94 88 90 84 86 86 97 98 92 93 89 91 77 78 83 66 80 88 87 73 80 86 Engine 4 | . 14 14 11 10 11 11 9 8 9 9 7 7 7 7 7 5 4 . . . . . . . . . . . . . . . Core 1 | . . . . . . . . . . . . . . . . . 1 4 4 5 5 5 5 1 3 3 . . . . . . Reactor 1 | . . . . . . . . . . . . . . . . . . 1 5 5 5 5 2 4 1 . 7 9 7 6 8 8 Treads 5 | . . . . . . . . . 7 9 7 7 8 7 17 15 . 1 10 11 14 15 . . 1 3 . . . . . . Leg 10 | . 13 . . . . . 27 34 28 18 10 . . . 5 1 22 23 5 4 . . 10 5 5 6 . . . . . . Wheel 4 | . 14 28 33 32 33 31 6 . . . 9 15 15 15 1 . . . . . . . . . . . . . . . . . Hover 1 | . . . . . . . . . . . . . . . . . . . . . . . . 15 15 8 1 . . . . . Flight 1 | . . . . . . . . . . . . . . . . . . . . . . . . 2 . . 21 23 25 23 28 28 Device 6 | . . . 6 9 11 11 4 2 . . 5 . 3 7 . 2 . 4 10 10 10 15 7 5 8 7 15 18 20 14 18 19 Storage 6 | . 14 14 11 11 11 11 9 9 9 9 7 7 7 7 7 5 6 6 5 5 5 5 5 2 4 3 1 4 5 8 8 8 Processor 6 | . 9 14 8 11 11 11 8 5 9 2 6 9 7 7 7 4 6 6 5 5 5 5 5 6 5 5 9 4 4 4 4 4 Hackware 19 | . . . . . . . 7 7 9 22 23 24 23 23 24 34 31 21 20 23 19 16 20 25 29 24 10 19 15 13 12 15 Protection 3 | . . . 5 . . . 4 8 . . . . . . . . 7 12 7 4 7 5 3 . 1 . . . . . . . Energy Gun 2 | . . . 2 8 . . 10 6 . 1 . . . . . . 3 6 3 . . . 1 3 . . 2 . . . . . Energy Cannon 1 | . . . . . . . . . . . . . . . . . . . 4 11 11 10 4 2 1 . 1 2 2 . . 3 Ballistic Gun 1 | . 28 28 4 8 . . 6 . . . . . . . . . . 4 1 . . . 3 . . . 1 1 . . . . Ballistic Cannon 1 | . . . 14 . . . . 5 . 5 2 . . . . 2 2 . . . . . . 1 2 1 . . . . 2 . Special Weapon 2 | . . . . . . . . 2 9 5 4 4 5 . 7 2 3 1 1 . . . . . . . 3 4 3 . . . Slashing Weapon 1 | . . . . 2 11 11 . 2 9 5 7 7 7 7 1 1 . . . . . . . . . . . . . . . . Peak Build Rating 184 | 6 12 12 22 29 29 29 35 38 37 36 43 41 45 41 46 57 59 89 104 100 105 99 96 112 107 96 146 154 170 147 176 184 Average Rating 62 | 4 9 12 19 24 29 27 30 33 32 32 37 38 40 39 44 47 53 80 98 98 99 97 72 82 92 71 115 132 151 137 163 174 On Entrance 61 | . 6 12 12 22 29 29 27 29 30 33 31 39 38 41 39 43 42 58 89 99 95 99 69 72 106 96 29 134 131 129 133 172 Naked Turns . | . . . . . . . . . . . . . . . . . . . . . . . . . . . . . . . . . Heaviest Build 106 | 14 32 32 41 35 35 35 40 43 34 46 98 99 101 101 100 106 41 53 78 78 78 72 79 51 78 55 55 55 63 53 57 62 Greatest Support 136 | 20 24 24 36 36 36 36 63 68 57 47 45 42 26 26 88 96 75 80 103 131 136 136 80 60 57 45 56 56 63 61 68 80 Greatest Overweight (x) 28 | . 1 1 1 . . 1 . . . 2 2 3 3 3 4 28 1 1 . . . . 10 1 2 1 1 . . . . . Average Overweight (x) . | . . 1 . . . . . . . . 1 2 3 3 1 1 . . . . . . . . . . . . . . . . Largest Inventory Capacity 25 | 8 15 15 15 15 15 15 15 15 15 15 25 25 25 25 25 25 10 10 10 10 10 10 10 10 15 15 10 10 10 10 10 10 Average Capacity 14 | 7 10 15 15 15 15 15 15 15 15 15 18 25 25 25 25 21 10 10 10 10 10 10 10 7 14 11 5 10 10 10 10 10 Most Carried 25 | 1 6 6 14 15 14 14 15 15 15 15 16 21 24 25 24 21 10 10 10 10 10 10 9 10 15 15 10 10 10 9 10 10 Average Carried 12 | . 3 6 8 14 14 13 13 14 14 14 14 19 22 24 22 15 8 9 9 9 9 9 6 7 12 11 5 8 8 6 5 9 Final Capacity 25 | 8 15 15 15 15 15 15 15 15 15 15 25 25 25 25 25 10 10 10 10 10 10 10 10 5 15 5 10 10 10 10 10 10 Final Carried 25 | 1 6 6 14 14 14 13 11 15 14 14 16 21 24 25 21 6 10 9 10 10 10 8 8 5 14 5 10 8 9 6 10 9 Class Distribution -------------------- 45% | Bothacker-Mutant 20% | Scavenger-Mutant 16% | Mutant 5% | Commander-Mutant 3% | Hacker-Sprinter 3% | Hacker-Mutant Dominant Class ---------------- Mutant | -10/Materials Mutant | -10/Mines Mutant | -9/Materials Mutant | -9/Mines Gladiator | -9/Exiles Gladiator | -8/Mines Mutant | -8/Materials Bothacker-Mutant | -8/Garrison Bothacker-Mutant | -8/Materials Bothacker-Mutant | -8/Garrison Bothacker-Mutant | -7/Factory Bothacker-Mutant | -7/Lower Caves Bothacker-Mutant | -7/Lower Caves Bothacker-Mutant | -7/Data Miner Commander-Mutant | -6/Proximity Caves Bothacker-Mutant | -6/Factory Bothacker-Mutant | -6/Extension Bothacker-Mutant | -6/Cetus Scavenger-Mutant | -5/Factory Scavenger-Mutant | -5/Upper Caves Scavenger-Mutant | -5/Upper Caves Scavenger-Mutant | -5/Warlord Scavenger-Mutant | -4/Proximity Caves Hacker-Mutant | -4/Factory Bothacker-Mutant | -4/Garrison Bothacker-Mutant | -4/Factory Sprinter | -3/Research Hacker-Sprinter | -3/Testing Hacker-Sprinter | -2/Research Hacker-Sprinter | -2/Garrison Hacker-Sprinter | -1/Access Hacker-Mutant | -1/Command Resources | -11 -10 -10 -9 -9 -9 -8 -8 -8 -8 -8 -7 -7 -7 -7 -6 -6 -6 -6 -5 -5 -5 -5 -4 -4 -4 -4 -3 -3 -2 -2 -1 -1 ----------- Run | Yrd Mat Min Mat Min Exi Min Mat Gar Mat Gar Fac Low Low Dat Pro Fac Ext Cet Fac Upp Upp War Pro Fac Gar Fac Res Tes Res Gar Acc Com Matter Collected 9577 | 222 . 109 398 331 . 35 604 655 4 358 190 234 52 . 379 1116 498 222 361 25 40 15 479 495 900 106 1010 . 471 . . 268 Remotely . | . . . . . . . . . . . . . . . . . . . . . . . . . . . . . . . . . Salvage Created 10470 | . . 109 465 355 . 161 1352 643 . 85 280 42 273 . 20 1390 395 . 514 576 139 20 709 639 470 19 718 . 828 . . 268 Parts 508 | . . 6 36 19 . 20 94 33 . 6 14 2 10 . 3 54 10 . 23 22 10 . 35 21 18 4 17 . 43 . . 8 Haulers Intercepted 16 | . . . 3 . . . 2 . . . . . . . . 1 1 . 4 . . . . 2 . . 2 . 1 . . . Recyclers Shooed 11 | . . . 1 2 . . . . . . . . . . . 5 . . . . . . . 1 . 1 . . 1 . . . Parts Field Recycled . | . . . . . . . . . . . . . . . . . . . . . . . . . . . . . . . . . Retrieved Matter . | . . . . . . . . . . . . . . . . . . . . . . . . . . . . . . . . . Parts Self-Destructed 111 | . . . . . . . . . . . . 19 7 . 18 . . . . 24 10 . 33 . . . . . . . . . Prevented . | . . . . . . . . . . . . . . . . . . . . . . . . . . . . . . . . . Kills | -11 -10 -10 -9 -9 -9 -8 -8 -8 -8 -8 -7 -7 -7 -7 -6 -6 -6 -6 -5 -5 -5 -5 -4 -4 -4 -4 -3 -3 -2 -2 -1 -1 ------- Run | Yrd Mat Min Mat Min Exi Min Mat Gar Mat Gar Fac Low Low Dat Pro Fac Ext Cet Fac Upp Upp War Pro Fac Gar Fac Res Tes Res Gar Acc Com Combat Hostiles Destroyed 182 | . . 2 13 7 . 7 27 22 . 3 . . 4 . 2 20 6 . 4 13 5 1 12 7 10 . 1 . 16 . . . Melee 16 | . . . . . . 7 . 2 . . . . 1 . . 4 2 . . . . . . . . . . . . . . . Guns 47 | . . 2 1 7 . . 18 6 . 1 . . . . . 1 2 . . . . . 6 2 . . 1 . . . . . Cannons 77 | . . . 12 . . . . 13 . 2 . . . . . 10 2 . 3 10 5 1 6 5 8 . . . . . . . AOE 38 | . . . . . . . 9 . . . . . 3 . 2 4 . . 1 3 . . . . . . . . 16 . . . Classes Destroyed 19 | . . 2 6 1 . . 3 2 . . . 1 . . . 2 . . . . . . 1 . . . . . 1 . . . Worker 24 | . . 1 . . . 2 3 . . . 2 . . . . 10 . . 2 . . . . . . . . . 4 . . . Builder 12 | . . . 1 2 . . 1 . . . 1 . . . . 3 . . . . . . . . . 1 . . 3 . . . Tunneler 2 | . . . . 1 . . 1 . . . . . . . . . . . . . . . . . . . . . . . . . Hauler 16 | . . . 3 . . . 2 . . . . . . . . 1 1 . 4 . . . . 2 . . 2 . 1 . . . Recycler 22 | . . . 1 2 . . 3 . . . 3 . . . . 3 . . . . . . . 2 . . 3 . 3 . . 2 Mechanic 1 | . . . . . . . 1 . . . . . . . . . . . . . . . . . . . . . . . . . Operator 1 | . . . . . . . 1 . . . . . . . . . . . . . . . . . . . . . . . . . Drone 2 | . . . . . . . . . . . . . . . . . . . . . . . 2 . . . . . . . . . Watcher 7 | . . . 2 . . . 1 . . . . . . . . 1 . . 1 . . . . 1 . . 1 . . . . . Swarmer 84 | . . . 6 7 . 7 10 13 . . . . 3 . 2 6 1 . 1 3 5 . . 5 2 . 1 . 12 . . . Cutter 3 | . . . . . . . . . . . . . . . . . . . . . . . . . . . . . 3 . . . Grunt 48 | . . 2 5 . . . 11 7 . . . . . . . 6 2 . 2 5 . 1 3 . 4 . . . . . . . Brawler 3 | . . . . . . . 2 . . . . . . . . . . . . . . . . . 1 . . . . . . . Duelist 8 | . . . . . . . . 2 . . . . . . . . . . . 3 . . 2 . 1 . . . . . . . Sentry 18 | . . . 2 . . . 4 1 . 1 . . 1 . . 2 2 . . 2 . . 2 . 1 . . . . . . . Hunter 7 | . . . . . . . . . . . . . . . . 3 . . . . . . 2 . 1 . . . 1 . . . Programmer 9 | . . . . . . . . 1 . 2 . . . . . 3 . . 1 . . . . 2 . . . . . . . . Behemoth 4 | . . . . . . . . . . . . . . . . 1 1 . . . . . 1 . 1 . . . . . . . Decomposer 3 | . . . . . . . . . . . . . 3 . . . . . . . . . . . . . . . . . . . Packrat 2 | . . . . . . . . . . . . . 2 . . . . . . . . . . . . . . . . . . . Samaritan 2 | . . . . . . . . . . . . 1 . . . . . . . . 1 . . . . . . . . . . . Best Kill Streak 13 | . . 3 5 5 . 5 8 7 . 2 2 . 3 . 2 12 2 . 2 4 3 1 4 5 2 1 2 . 13 . . 1 Combat Bots Only 10 | . . 2 4 4 . 4 7 7 . 2 . . 3 . 2 5 2 . 1 4 3 1 4 5 2 . 1 . 10 . . . Max Kills in Single Turn 6 | . . 1 1 1 . 1 4 1 . 1 1 1 2 . 2 3 1 . 2 1 2 1 1 1 1 1 1 . 6 . . 1 Gunslinging . | . . . . . . . . . . . . . . . . . . . . . . . . . . . . . . . . . Exploded 5 | . . . . . . . 3 . . . . . 2 . 2 2 . . 1 1 . . . . . . . . 5 . . . Melee 1 | . . . . . . 1 . 1 . . . . 1 . . 1 1 . . . . . . . . . . . . . . . Uniques/NPCs Destroyed . | . . . . . . . . . . . . . . . . . . . . . . . . . . . . . . . . . Combat | -11 -10 -10 -9 -9 -9 -8 -8 -8 -8 -8 -7 -7 -7 -7 -6 -6 -6 -6 -5 -5 -5 -5 -4 -4 -4 -4 -3 -3 -2 -2 -1 -1 -------- Run | Yrd Mat Min Mat Min Exi Min Mat Gar Mat Gar Fac Low Low Dat Pro Fac Ext Cet Fac Upp Upp War Pro Fac Gar Fac Res Tes Res Gar Acc Com Hostile Shots Fired 1806 | . . 9 100 38 . 46 100 131 . 40 6 20 18 . 7 238 85 9 74 74 29 47 132 95 116 141 27 27 88 24 64 21 Missed 600 | . . 2 25 8 . 6 32 38 . 9 2 6 8 . 2 58 27 3 23 20 6 11 32 32 36 64 14 10 45 12 52 17 Hits 1206 | . . 7 75 30 . 40 68 93 . 31 4 14 10 . 5 180 58 6 51 54 23 36 100 63 80 77 13 17 43 12 12 4 Melee 18 | . . . . . . . 3 3 . . . . . . . . . . . 5 . . 4 . . . . . 3 . . . Projectile 1188 | . . 7 75 30 . 40 65 90 . 31 4 14 10 . 5 180 58 6 51 49 23 36 96 63 80 77 13 17 40 12 12 4 AOE 2 | . . . . . . . . . . . . . . . . 1 . . . . . . . . . 1 . . . . . . Critical Strikes 44 | . . . 1 . . 1 5 3 . 1 . . 1 . 1 5 . 2 3 1 . 3 5 . 4 3 1 1 3 . . . Part Disruptions 1 | . . . . . . . . . . . . . . . . . . . . . . . . 1 . . . . . . . . Damage Taken 20506 | . . 103 658 275 . 310 1428 1130 15 463 61 183 140 . 158 3296 818 83 638 818 348 982 1935 1206 1644 1345 270 344 1253 203 218 181 Core 3561 | . . 47 142 58 . 59 151 188 15 41 15 17 10 . 85 709 66 . 58 31 18 57 266 267 309 557 49 62 76 51 37 120 Absorbed by Shields 1378 | . . . 111 . . . . 9 . . . . . . . . 9 82 344 450 . . 317 . . . . . . 56 . . Redirected to Shielding 149 | . . . 49 2 . . . 98 . . . . . . . . . . . . . . . . . . . . . . . . Ignored by Resistances 9 | . . . . . . . . 9 . . . . . . . . . . . . . . . . . . . . . . . . Core Remaining (%) 60 | 100 . 81 . . . 35 . . . 28 . . . . 81 . . 8 . . . . 57 . . 1 . 91 . 91 . 90 Volleys Fired 768 | . . 8 49 22 . . 73 79 5 23 4 14 8 . 15 78 38 8 46 18 8 11 51 35 68 2 43 8 31 . 3 20 Largest 2 | . . 2 2 2 . . 2 2 1 2 1 1 1 . 1 2 2 2 2 2 2 1 2 2 2 1 2 1 2 . 1 1 Hottest 201 | . . 40 76 68 . . 110 110 5 92 40 36 36 . 43 80 121 103 180 180 180 90 171 171 108 81 201 113 180 . 58 120 Shots Fired 1210 | . . 16 98 44 . . 141 132 5 33 4 14 8 . 16 124 59 9 81 36 16 11 87 50 108 2 52 8 33 . 3 20 Gun 444 | . . 16 14 44 . . 133 66 . 10 . . . . . 3 27 9 28 . . . 48 13 . 2 31 . . . . . Cannon 610 | . . . 84 . . . . 42 . 10 2 . . . . 110 26 . 42 36 16 7 36 37 104 . 14 8 16 . 1 19 Launcher 38 | . . . . . . . 8 . . . . 2 5 . 3 9 . . . . . . . . . . . . 11 . . . Special 118 | . . . . . . . . 24 5 13 2 12 3 . 13 2 6 . 11 . . 4 3 . 4 . 7 . 6 . 2 1 Kinetic 541 | . . 16 91 22 . . 55 42 . 10 2 . . . . 81 26 8 8 . . . 33 29 95 . 21 . 1 . 1 . Thermal 465 | . . . 7 . . . 64 66 . 10 1 . . . . 32 27 1 62 36 16 7 51 17 . 2 24 8 15 . . 19 Explosive 38 | . . . . . . . 8 . . . . 2 5 . 3 9 . . . . . . . . . . . . 11 . . . Electromagnetic 49 | . . . . 22 . . 14 . . . . . . . . . . . . . . . . 4 9 . . . . . . . Robot Hit Streak 16 | . . 5 9 15 . . 12 9 13 15 3 4 2 . 9 8 7 5 13 16 9 3 7 7 10 . 14 . 12 . . 3 Robot Miss Streak 7 | . . 3 5 2 . . 6 7 . 4 . 2 1 . 2 5 4 1 3 3 2 1 3 3 5 2 1 . 2 . . 2 Penetration Max 1 | . . . . . . . . . . . . . . . . 1 . . 1 . . . . . . . 1 . . . . . Secondary Targets 4 | . . . . 4 . . . . . . . . . . . . . . . . . . . . . . . . . . . . Max Gunslinging Chain 1 | . . . . 1 . . . . . . . . . . . . . . . . . . . . . . . . . . . . Shots Hit Robots 777 | . . 9 49 34 . 12 89 93 5 27 8 9 10 . 12 96 38 8 59 25 8 4 53 28 46 . 39 . 12 . . 4 Core Hits 415 | . . 5 21 14 . 6 63 57 . 12 2 3 7 . 3 60 15 3 20 18 6 . 23 12 15 2 16 . 30 . . 2 Critical Kills 3 | . . . . . . . . . . . . . . . . . . . 1 . . . 1 . . . 1 . . . . . Critical Parts Destroyed 6 | . . . . . . . . . . . . . . . . . . . . . . . 2 . . . 4 . . . . . Critical Strikes 38 | . . . 2 . . 1 2 1 . 1 . . . . . 11 3 . 1 . . . 4 3 2 . 7 . . . . . Burn 9 | . . . . . . . 2 1 . 1 . . . . . . 2 . . . . . 1 1 . . 1 . . . . . Destroy 10 | . . . . . . . . . . . . . . . . . . . 1 . . . 3 . . . 6 . . . . . Blast 14 | . . . 2 . . . . . . . . . . . . 7 1 . . . . . . 2 2 . . . . . . . Sever 2 | . . . . . . 1 . . . . . . . . . 1 . . . . . . . . . . . . . . . . Impale 3 | . . . . . . . . . . . . . . . . 3 . . . . . . . . . . . . . . . . Melee Attacks 105 | . . . . . . 19 1 15 2 4 14 2 8 . 1 35 4 . . . . . . . . . . . . . . . Impact 4 | . . . . . . . . . . . . . . . . . 4 . . . . . . . . . . . . . . . Slashing 86 | . . . . . . 19 1 13 2 4 14 2 8 . 1 22 . . . . . . . . . . . . . . . . Piercing 13 | . . . . . . . . . . . . . . . . 13 . . . . . . . . . . . . . . . . Sneak Attacks 33 | . . . . . . 3 1 5 . . 6 2 6 . . 10 . . . . . . . . . . . . . . . . Combat Hostiles 3 | . . . . . . 1 . 2 . . . . . . . . . . . . . . . . . . . . . . . . Follow-up Attacks 2 | . . . . . . . . . . . . . . . . 2 . . . . . . . . . . . . . . . . Damage Inflicted 26447 | . . 118 1282 553 . 772 2932 1484 . 419 418 162 880 . 223 4230 1097 157 1926 1320 342 43 1620 1240 1687 48 662 . 2657 . . 175 Guns 5616 | . . 118 94 489 . . 1611 690 . 185 . . . . . 31 424 157 535 . . . 714 189 . . 379 . . . . . Cannons 11294 | . . . 1188 . . . . 543 . 234 . . . . . 2137 570 . 1182 883 342 38 832 1039 1687 . 283 . 165 . . 171 Explosions 5991 | . . . . 64 . . 1220 . . . . 36 377 . 223 873 . . 195 437 . . 74 . . . . . 2492 . . . Melee 3451 | . . . . . . 772 97 251 . . 418 126 503 . . 1181 103 . . . . . . . . . . . . . . . Ramming 95 | . . . . . . . 4 . . . . . . . . 8 . . 14 . . 5 . 12 . 48 . . . . . 4 Kinetic 8431 | . . 118 1213 201 . . 649 543 . 234 . . . . . 1517 570 136 180 . . . 499 785 1599 . 187 . . . . . Thermal 8772 | . . . 69 64 . . 925 690 . 185 . . . . . 806 424 21 1732 1320 342 38 1121 224 . . 475 . 165 . . 171 Explosive 4826 | . . . . . . . 1009 . . . . 36 377 . 223 689 . . . . . . . . . . . . 2492 . . . Electromagnetic 872 | . . . . 288 . . 248 . . . . . . . . 29 . . . . . . . 219 88 . . . . . . . Impact 103 | . . . . . . . . . . . . . . . . . 103 . . . . . . . . . . . . . . . Slashing 2958 | . . . . . . 772 97 251 . . 418 126 503 . . 791 . . . . . . . . . . . . . . . . Piercing 390 | . . . . . . . . . . . . . . . . 390 . . . . . . . . . . . . . . . . Highest Corruption 22 | . . . . . . . 6 6 6 7 5 6 6 6 6 7 16 16 . . . 3 22 9 11 13 2 . . . . . Average Corruption 8 | . . . . . . . 5 6 6 6 4 5 6 6 6 5 14 16 . . . 3 11 4 10 11 2 . . . . . Corruption Purged . | . . . . . . . . . . . . . . . . . . . . . . . . . . . . . . . . . Corruption Blocked . | . . . . . . . . . . . . . . . . . . . . . . . . . . . . . . . . . Effects 364 | . . . . . . . 7 32 12 18 3 11 18 4 39 23 60 19 . . . 1 35 5 59 12 6 . . . . . Message Errors 96 | . . . . . . . 2 10 5 6 1 1 12 . 14 3 14 7 . . . . 9 1 9 1 1 . . . . . Matter Fused 96 | . . . . . . . 3 6 2 6 1 5 2 1 8 3 19 5 . . . . 13 2 15 3 2 . . . . . Heat Flow Errors 39 | . . . . . . . . 3 2 3 . . 1 1 4 3 7 2 . . . 1 2 . 6 2 2 . . . . . Energy Discharges 42 | . . . . . . . 1 5 1 1 . 1 . . 4 7 7 4 . . . . 3 1 6 1 . . . . . . Parts Rejected 3 | . . . . . . . . . 1 . . 1 . . . . . . . . . . . . 1 . . . . . . . Parts Fused 4 | . . . . . . . . . . . . . 2 . . 1 . . . . . . 1 . . . . . . . . . Data Loss (minor) 34 | . . . . . . . . 4 . . . 2 . 1 5 2 5 1 . . . . 4 . 8 2 . . . . . . Data Loss (major) 25 | . . . . . . . . . 1 2 . 1 1 1 2 2 4 . . . . . 1 1 6 2 1 . . . . . Misfires 9 | . . . . . . . . 1 . . . . . . 1 1 1 . . . . . 1 . 4 . . . . . . . Alerts 9 | . . . . . . . . 3 . . 1 . . . 1 1 . . . . . . 1 . 2 . . . . . . . Misdirections 2 | . . . . . . . . . . . . . . . . . 1 . . . . . . . . 1 . . . . . . Weapon Failures 5 | . . . . . . . 1 . . . . . . . . . 2 . . . . . . . 2 . . . . . . . Overload Shots . | . . . . . . . . . . . . . . . . . . . . . . . . . . . . . . . . . Overflow Damage 1276 | . . . 24 25 . 177 68 5 . . 115 31 185 . 16 136 . . 39 21 . 20 . 77 82 . . . 255 . . . Projectiles 287 | . . . 24 . . . . 5 . . . . . . . 37 . . 39 3 . 20 . 77 82 . . . . . . . Explosions 382 | . . . . 25 . . 68 . . . . . . . 16 . . . . 18 . . . . . . . . 255 . . . Melee 607 | . . . . . . 177 . . . . 115 31 185 . . 99 . . . . . . . . . . . . . . . . Knockbacks 73 | . . . 5 . . . . 31 . 1 . . . . . 17 2 . 1 . . 1 . 7 6 2 . . . . . . Impact 4 | . . . . . . . . . . . . . . . . . . . 1 . . 1 . . . 2 . . . . . . Kinetic 65 | . . . 5 . . . . 28 . 1 . . . . . 16 2 . . . . . . 7 6 . . . . . . . Secondary 4 | . . . . . . . . 3 . . . . . . . 1 . . . . . . . . . . . . . . . . Self-Inflicted Damage 640 | . . . . 40 . . 221 . . . . . . . . 54 . . . 108 . . 14 . . 12 . . 189 . . 2 Shots 13 | . . . . 1 . . 6 . . . . . . . . 1 . . . 2 . . 1 . . . . . 2 . . . Rammed 14 | . . . . . . . . . . . . . . . . 2 . . . . . 1 . . . 9 . . . . . 2 Targets Rammed 17 | . . . . . . . 1 . . . . . . . . 2 . . 1 . . 1 . 1 . 9 . . . . . 2 Kicked 2 | . . . . . . . 1 . . . . . . . . . . . . . . . . 1 . . . . . . . . Crushed 1 | . . . . . . . . . . . . . . . . . . . 1 . . . . . . . . . . . . . Highest Temperature 497 | . . . 37 6 . . 273 250 269 199 . . 180 109 209 218 384 101 225 262 276 170 438 497 436 235 206 135 255 34 82 195 Average Temperature 85 | . . . 18 6 . . 55 68 119 63 . . 99 55 78 56 120 36 68 83 112 51 161 137 82 107 75 52 86 20 26 62 Received Heat Transfer 3349 | . . 60 100 . . . 423 393 . 81 . 36 12 . 27 459 199 . 117 157 . 333 239 99 413 . 69 30 72 30 . . Effects 10 | . . . . . . . . . . . . . . . . . 1 . . . . . 2 6 . . 1 . . . . . Shutdowns 1 | . . . . . . . . . . . . . . . . . . . . . . . . 1 . . . . . . . . Energy Bleed 1 | . . . . . . . . . . . . . . . . . . . . . . . . 1 . . . . . . . . Interference 6 | . . . . . . . . . . . . . . . . . 1 . . . . . 2 2 . . 1 . . . . . Damage (major) 2 | . . . . . . . . . . . . . . . . . . . . . . . . 2 . . . . . . . . Siege Activations . | . . . . . . . . . . . . . . . . . . . . . . . . . . . . . . . . . Martial Activations . | . . . . . . . . . . . . . . . . . . . . . . . . . . . . . . . . . Shielding Activations . | . . . . . . . . . . . . . . . . . . . . . . . . . . . . . . . . . Robots Disrupted . | . . . . . . . . . . . . . . . . . . . . . . . . . . . . . . . . . Combat Hostiles . | . . . . . . . . . . . . . . . . . . . . . . . . . . . . . . . . . Robots Corrupted 2 | . . . . . . . . . . . . . . . . . . . . . . . . . 2 . . . . . . . Combat Hostiles 2 | . . . . . . . . . . . . . . . . . . . . . . . . . 2 . . . . . . . Parts Fried 7 | . . . . 1 . . . . . . . . . . . . . . . . . . . 2 4 . . . . . . . Impact Corruptions . | . . . . . . . . . . . . . . . . . . . . . . . . . . . . . . . . . Robots Melted 2 | . . . . . . . . 1 . . . . . . . 1 . . . . . . . . . . . . . . . . Combat Hostiles 2 | . . . . . . . . 1 . . . . . . . 1 . . . . . . . . . . . . . . . . Parts Melted 13 | . . . . . . . 5 2 . . . . . . . . . . 2 . . . . 1 . . 2 . 1 . . . Heat Transferred 8199 | . . . 148 50 . . 1654 1406 . 251 . . . . . 1100 777 50 631 300 . . 457 370 . . 709 . 148 . . 148 Parts Sabotaged . | . . . . . . . . . . . . . . . . . . . . . . . . . . . . . . . . . Parts Stolen . | . . . . . . . . . . . . . . . . . . . . . . . . . . . . . . . . . Parts Stripped . | . . . . . . . . . . . . . . . . . . . . . . . . . . . . . . . . . Power Chain Reactions 8 | . . . . 1 . . 1 . . . . . . . . . . . 2 3 . . 1 . . . . . . . . . Alert | -11 -10 -10 -9 -9 -9 -8 -8 -8 -8 -8 -7 -7 -7 -7 -6 -6 -6 -6 -5 -5 -5 -5 -4 -4 -4 -4 -3 -3 -2 -2 -1 -1 ------- Run | Yrd Mat Min Mat Min Exi Min Mat Gar Mat Gar Fac Low Low Dat Pro Fac Ext Cet Fac Upp Upp War Pro Fac Gar Fac Res Tes Res Gar Acc Com Maximum Alert Level 4 | . . . 1 . . . 2 3 2 2 1 . . . . 2 1 1 4 . . . . 3 3 2 1 1 3 2 1 1 Low Security (%) 46 | 100 100 100 92 100 . 100 37 6 74 34 74 . . . . 61 85 58 41 . . . . . . . 75 73 20 . 6 . Level 1 24 | . . . 7 . . . 58 11 21 10 25 . . . . 36 14 41 14 . . . . . 4 30 24 26 63 . 94 100 Level 2 16 | . . . . . . . 4 68 4 54 . . . . . 2 . . 11 . . . . 65 30 69 . . 14 100 . . Level 3 10 | . . . . . . . . 13 . . . . . . . . . . 21 . . . . 34 65 . . . 1 . . . Level 4 1 | . . . . . . . . . . . . . . . . . . . 11 . . . . . . . . . . . . . Level 5 . | . . . . . . . . . . . . . . . . . . . . . . . . . . . . . . . . . High Security . | . . . . . . . . . . . . . . . . . . . . . . . . . . . . . . . . . Max Security . | . . . . . . . . . . . . . . . . . . . . . . . . . . . . . . . . . Peak Influence 1302 | . . 45 211 160 . 135 424 836 407 577 302 . . . . 449 261 277 1302 . . . . 755 1087 570 257 213 717 549 381 322 Initial 750 | . . . 13 72 . . 48 166 407 . 302 . . . . 31 218 132 122 . . . . 750 338 570 196 64 117 537 316 243 Average 310 | . . 19 79 92 . 68 235 566 149 353 134 . . . . 141 137 191 455 . . . . 594 775 476 175 137 271 540 296 290 Influence Increases 13641 | . . 55 426 188 . 185 958 860 19 677 105 222 145 . 490 1167 781 285 1974 280 125 106 232 1190 889 65 447 226 1078 12 285 169 Destroy 0b10 Robot/C 5760 | . . 40 260 140 . 140 540 480 . 320 20 140 80 . 240 500 420 160 720 260 100 80 200 140 300 . 140 . 340 . . . Destroy 0b10 Robot/NC 515 | . . 5 35 25 . 10 65 . 5 . 30 . . . . 95 5 10 80 . . 5 10 25 . 5 35 . 60 . . 10 Destroy Leader 866 | . . 10 60 20 . 20 116 20 2 30 10 10 10 . 20 126 50 . 168 20 10 . 20 26 30 . 46 . 42 . . . Allied During Kill 1843 | . . . . . . . . 8 2 172 16 72 55 . 230 88 153 102 818 . . 6 2 . 36 . 78 . 5 . . . Trap Triggered on 0b10 90 | . . . . . . . . . . . . . . . . . . . . . . . . . 90 . . . . . . . Successful Hack 421 | . . . . . . . 24 35 7 14 12 . . . . 12 20 8 42 . . . . . . . 18 36 79 12 60 42 Disable Machine 420 | . . . . . . . 15 . . . 15 . . . . 165 30 . 30 . . . . 15 75 . . 30 30 . . 15 Anti-Garrison Action 600 | . . . . . . . . 250 . 100 . . . . . . . . . . . . . . 250 . . . . . . . Destroy Structure 771 | . . . 26 3 . . 78 7 3 11 2 . . . . 136 13 5 116 . . . . 24 63 . 10 10 237 . . 27 Advance Influence 750 | . . . . . . . . . . . . . . . . . . . . . . . . 750 . . . . . . . . Partial Spotted 300 | . . . . . . . . 15 . . . . . . . . . . . . . . . . 15 15 60 75 60 . 30 30 Lose Combat Pursuer 1305 | . . . 45 . . 15 120 45 . 30 . . . . . 45 90 . . . 15 15 . 210 30 45 60 75 225 . 195 45 Influence Decreases 13339 | . . 20 276 365 8 60 827 280 855 100 643 235 74 97 440 770 991 303 951 856 367 519 243 706 286 777 707 131 571 200 433 248 Entered New Map 4121 | . . . 22 113 8 . 77 90 429 . 275 15 6 97 . 19 229 105 97 460 127 424 11 . 146 517 179 51 93 180 213 138 Time Decay 6116 | . . 20 224 222 . 50 630 . 276 . 368 216 60 . 340 412 511 198 568 386 230 15 150 326 . 140 368 70 186 . 70 80 Search Patrol Dispatched 300 | . . . . . . . . . . . . . . . . . . . . . . . . 300 . . . . . . . . Lost Part 1028 | . . . 30 30 . 10 120 50 . 20 . 4 8 . 20 199 17 . 10 10 10 40 40 80 80 120 20 10 70 20 . 10 Lost Ally 1342 | . . . . . . . . 140 . 80 . . . . 80 140 234 . 276 . . 40 42 . 60 . 140 . 90 . . 20 Purge Threat 432 | . . . . . . . . . 150 . . . . . . . . . . . . . . . . . . . 132 . 150 . Squads Dispatched 55 | . . . . 1 . . 5 . . . 1 . . . . 5 1 . 12 . . . 1 3 . . 12 1 8 . 2 3 Investigation 6 | . . . . 1 . . 1 . . . . . . . . . . . . . . . . . . . 2 . . . 1 1 Extermination 14 | . . . . . . . . . . . 1 . . . . 3 . . 3 . . . . 2 . . . 1 2 . 1 1 Reinforcement 27 | . . . . . . . 3 . . . . . . . . 2 1 . 7 . . . . 1 . . 7 . 5 . . 1 Assault 2 | . . . . . . . . . . . . . . . . . . . 1 . . . 1 . . . . . . . . . Garrison 6 | . . . . . . . 1 . . . . . . . . . . . 1 . . . . . . . 3 . 1 . . . Intercept . | . . . . . . . . . . . . . . . . . . . . . . . . . . . . . . . . . Searches Triggered 2 | . . . . . . . . . . . . . . . . . . . . . . . . 2 . . . . . . . . Data Miner Redirects 2 | . . . . . . . . . . . . . . . . . . . 1 . . . . . . . . . . . . 1 Construction Impeded 4 | . . . . . . . . . . . . . . . . 2 . . 1 . . . . . . . 1 . . . . . Haulers Reinforced 8 | . . . . . . . . . . . . . . . . . . . 4 . . . . . . . 4 . . . . . Active Scanning Responses . | . . . . . . . . . . . . . . . . . . . . . . . . . . . . . . . . . Cargo Convoy Interrupts . | . . . . . . . . . . . . . . . . . . . . . . . . . . . . . . . . . Stealth | -11 -10 -10 -9 -9 -9 -8 -8 -8 -8 -8 -7 -7 -7 -7 -6 -6 -6 -6 -5 -5 -5 -5 -4 -4 -4 -4 -3 -3 -2 -2 -1 -1 --------- Run | Yrd Mat Min Mat Min Exi Min Mat Gar Mat Gar Fac Low Low Dat Pro Fac Ext Cet Fac Upp Upp War Pro Fac Gar Fac Res Tes Res Gar Acc Com Distress Signals 35 | . . . . . . . 5 . . . . . . . . 8 . 2 1 . . . 2 3 . . 6 1 5 . 1 1 Communications Jammed 48 | . . . . . . . . . . . . . . . . 10 38 . . . . . . . . . . . . . . . Distress Signals 48 | . . . . . . . . . . . . . . . . 10 38 . . . . . . . . . . . . . . . Times Spotted 540 | . 1 8 18 7 . 7 52 35 4 16 3 10 5 . 18 40 23 9 38 14 6 15 18 21 22 10 25 14 62 10 21 8 Peak Tracking Total 17 | . 1 15 4 4 . 4 7 4 2 6 1 3 3 . 5 6 7 5 5 7 5 15 6 7 4 5 7 8 17 10 17 6 Tactical Retreats 42 | . . . 1 . . 1 4 2 . 2 . . . . . 2 4 . . . 1 1 . 6 2 1 3 3 6 . 1 2 Traps | -11 -10 -10 -9 -9 -9 -8 -8 -8 -8 -8 -7 -7 -7 -7 -6 -6 -6 -6 -5 -5 -5 -5 -4 -4 -4 -4 -3 -3 -2 -2 -1 -1 ------- Run | Yrd Mat Min Mat Min Exi Min Mat Gar Mat Gar Fac Low Low Dat Pro Fac Ext Cet Fac Upp Upp War Pro Fac Gar Fac Res Tes Res Gar Acc Com Traps Triggered 30 | . . . 1 . . . 2 3 . . 2 . . . . 4 4 . . . . 1 . 1 8 . 1 . . 3 . . Indirectly . | . . . . . . . . . . . . . . . . . . . . . . . . . . . . . . . . . Trap Hack Attempts . | . . . . . . . . . . . . . . . . . . . . . . . . . . . . . . . . . Triggered . | . . . . . . . . . . . . . . . . . . . . . . . . . . . . . . . . . Disarmed . | . . . . . . . . . . . . . . . . . . . . . . . . . . . . . . . . . Reprogrammed . | . . . . . . . . . . . . . . . . . . . . . . . . . . . . . . . . . Reused 9 | . . . . . . . . . . . . . . . . . . . . . . . . . 9 . . . . . . . Traps Extracted . | . . . . . . . . . . . . . . . . . . . . . . . . . . . . . . . . . Installed 15 | . . . . . . . . . . . . . . . . . . . . . . . . . 15 . . . . . . . Triggered 9 | . . . . . . . . . . . . . . . . . . . . . . . . . 9 . . . . . . . Most Traps Carried 10 | . . . . . . . . . . . . . . . . . . . . . . . . . 10 . . . . . . . Machines | -11 -10 -10 -9 -9 -9 -8 -8 -8 -8 -8 -7 -7 -7 -7 -6 -6 -6 -6 -5 -5 -5 -5 -4 -4 -4 -4 -3 -3 -2 -2 -1 -1 ---------- Run | Yrd Mat Min Mat Min Exi Min Mat Gar Mat Gar Fac Low Low Dat Pro Fac Ext Cet Fac Upp Upp War Pro Fac Gar Fac Res Tes Res Gar Acc Com Machines Disabled 44 | . . . . . . . 1 3 . 4 1 . . . 1 11 4 . 2 . . 1 2 1 8 . . 2 2 . . 1 Max in Single Turn 4 | . . . . . . . 1 1 . 1 1 . . . 1 4 1 . . . . 1 1 1 1 . . 1 1 . . 1 Garrison Access 6 | . . . . . . . . . . . 1 . . . . 1 . . . . . . . . . . 2 . 1 . 1 . Garrison Relay 9 | . . . . . . . . 3 . 2 . . . . . . . . . . . . . . 4 . . . . . . . Machines Repaired . | . . . . . . . . . . . . . . . . . . . . . . . . . . . . . . . . . Machines Dismantled 2 | . . . . . . . . . . . . . . . . . 1 . . . . 1 . . . . . . . . . . Machines Sabotaged . | . . . . . . . . . . . . . . . . . . . . . . . . . . . . . . . . . Overloaded Fab Kills . | . . . . . . . . . . . . . . . . . . . . . . . . . . . . . . . . . Hacking | -11 -10 -10 -9 -9 -9 -8 -8 -8 -8 -8 -7 -7 -7 -7 -6 -6 -6 -6 -5 -5 -5 -5 -4 -4 -4 -4 -3 -3 -2 -2 -1 -1 --------- Run | Yrd Mat Min Mat Min Exi Min Mat Gar Mat Gar Fac Low Low Dat Pro Fac Ext Cet Fac Upp Upp War Pro Fac Gar Fac Res Tes Res Gar Acc Com Machines Accessed 74 | . 2 . 1 1 1 . 5 4 2 1 3 . . 4 . 6 4 1 8 . . . . 1 . . 7 2 11 2 4 4 Terminals 46 | . 2 . 1 . . . 4 4 1 1 1 . . . . 3 4 1 3 . . . . . . . 4 2 6 2 3 4 Fabricators 8 | . . . . . . . . . . . 1 . . . . . . . 4 . . . . . . . . . 3 . . . Repair Stations . | . . . . . . . . . . . . . . . . . . . . . . . . . . . . . . . . . Recycling Units 3 | . . . . . . . . . . . . . . . . 2 . . 1 . . . . . . . . . . . . . Scanalyzers . | . . . . . . . . . . . . . . . . . . . . . . . . . . . . . . . . . Garrison Access 11 | . . . . . . . 1 . 1 . 1 . . . . 1 . . . . . . . 1 . . 3 . 2 . 1 . Total Hacks 205 | . 5 . 3 1 4 . 14 4 6 1 6 . . 32 . 17 11 6 22 . . . . 2 . . 11 9 27 6 11 7 Successful 114 | . 3 . 1 1 4 . 8 3 4 1 2 . . 32 . 6 4 1 12 . . . . 1 . . 5 3 13 2 6 2 Failed 90 | . 2 . 2 . . . 5 1 2 . 4 . . . . 11 7 5 10 . . . . 1 . . 6 6 14 4 5 5 Catastrophic 23 | . 1 . . . . . 1 . 2 . 3 . . . . 2 2 . 1 . . . . . . . 4 1 4 . . 2 Database Lockouts 1 | . . . . . . . 1 . . . . . . . . . . . . . . . . . . . . . . . . . Manual 101 | . 8 . 3 . . . 11 . 5 . 4 . . . . 8 11 1 17 . . . 1 1 . . 6 2 15 . 5 3 Terminals 118 | . 5 . 3 . . . 11 4 3 1 2 . . . . 9 11 6 9 . . . . . . . 5 9 18 6 9 7 Fabricators 20 | . . . . . . . . . . . 3 . . . . . . . 11 . . . . . . . . . 6 . . . Repair Stations . | . . . . . . . . . . . . . . . . . . . . . . . . . . . . . . . . . Recycling Units 8 | . . . . . . . . . . . . . . . . 6 . . 2 . . . . . . . . . . . . . Scanalyzers . | . . . . . . . . . . . . . . . . . . . . . . . . . . . . . . . . . Garrison Access 22 | . . . . . . . 3 . 3 . 1 . . . . 2 . . . . . . . 2 . . 6 . 3 . 2 . Terminal Hacks 62 | . 1 . . 1 4 . 5 3 1 1 . . . 32 . 1 3 1 . . . . . . . . . 2 3 2 1 1 Record 15 | . . . . . 4 . . . . . . . . 11 . . . . . . . . . . . . . . . . . . Part Schematic 12 | . . . . . . . . . . . . . . 12 . . . . . . . . . . . . . . . . . . Robot Schematic 6 | . . . . . . . . . . . . . . 6 . . . . . . . . . . . . . . . . . . Robot Analysis 7 | . 1 . . . . . 3 . . . . . . . . . 3 . . . . . . . . . . . . . . . Prototype ID Bank 3 | . . . . . . . . . . . . . . 3 . . . . . . . . . . . . . . . . . . Open Door 3 | . . . . 1 . . . 1 . . . . . . . . . 1 . . . . . . . . . . . . . . Open DSF 1 | . . . . . . . . . . . . . . . . 1 . . . . . . . . . . . . . . . . Level Access Points 1 | . . . . . . . . . . . . . . . . . . . . . . . . . . . . 1 . . . . Branch Access Points 1 | . . . . . . . 1 . . . . . . . . . . . . . . . . . . . . . . . . . Emergency Access Points 3 | . . . . . . . . 1 . 1 . . . . . . . . . . . . . . . . . . . 1 . . Recycling Unit Index 1 | . . . . . . . . . . . . . . . . . . . . . . . . . . . . . . . . 1 Unreport Threat 3 | . . . . . . . . . 1 . . . . . . . . . . . . . . . . . . . 1 . 1 . Locate Traps 3 | . . . . . . . 1 . . . . . . . . . . . . . . . . . . . . 1 1 . . . Recall Reinforcements 1 | . . . . . . . . . . . . . . . . . . . . . . . . . . . . . 1 . . . Patrol Navigation 1 | . . . . . . . . 1 . . . . . . . . . . . . . . . . . . . . . . . . Security Stations 1 | . . . . . . . . . . . . . . . . . . . . . . . . . . . . . . 1 . . Fabricator Hacks 1 | . . . . . . . . . . . . . . . . . . . 1 . . . . . . . . . . . . . Build 1 | . . . . . . . . . . . . . . . . . . . 1 . . . . . . . . . . . . . Repair Station Hacks . | . . . . . . . . . . . . . . . . . . . . . . . . . . . . . . . . . Recycling Unit Hacks 3 | . . . . . . . . . . . . . . . . 2 . . 1 . . . . . . . . . . . . . Retrieve Components 3 | . . . . . . . . . . . . . . . . 2 . . 1 . . . . . . . . . . . . . Scanalyzer . | . . . . . . . . . . . . . . . . . . . . . . . . . . . . . . . . . Garrison Access Hacks 14 | . . . . . . . 1 . 1 . 1 . . . . 1 . . . . . . . 1 . . 4 . 3 . 2 . Unlock Access 4 | . . . . . . . 1 . 1 . . . . . . . . . . . . . . 1 . . . . 1 . . . Seal Access 6 | . . . . . . . . . . . 1 . . . . 1 . . . . . . . . . . 2 . 1 . 1 . Coupler Status 4 | . . . . . . . . . . . . . . . . . . . . . . . . . . . 2 . 1 . 1 . Unauthorized Hacks 34 | . 2 . 1 . . . 2 . 2 . 1 . . . . 2 1 . 10 . . . . . . . 1 1 7 . 3 1 Terminals 20 | . 2 . 1 . . . 1 . 1 . . . . . . 1 1 . 3 . . . . . . . . 1 5 . 3 1 Assimilate 4 | . . . . . . . . . . . . . . . . . . . . . . . . . . . . . 3 . . 1 Botnet 14 | . 2 . 1 . . . . . 1 . . . . . . 1 1 . 2 . . . . . . . . 1 2 . 3 . Operators 2 | . . . . . . . 1 . . . . . . . . . . . 1 . . . . . . . . . . . . . Fabricators 10 | . . . . . . . . . . . 1 . . . . . . . 7 . . . . . . . . . 2 . . . Liberate 6 | . . . . . . . . . . . 1 . . . . . . . 4 . . . . . . . . . 1 . . . Fabnet 4 | . . . . . . . . . . . . . . . . . . . 3 . . . . . . . . . 1 . . . Repair Stations . | . . . . . . . . . . . . . . . . . . . . . . . . . . . . . . . . . Recycling Units 1 | . . . . . . . . . . . . . . . . 1 . . . . . . . . . . . . . . . . Monitor 1 | . . . . . . . . . . . . . . . . 1 . . . . . . . . . . . . . . . . Scanalyzers . | . . . . . . . . . . . . . . . . . . . . . . . . . . . . . . . . . Garrison Access 3 | . . . . . . . 1 . 1 . . . . . . . . . . . . . . . . . 1 . . . . . Reprogram 3 | . . . . . . . 1 . 1 . . . . . . . . . . . . . . . . . 1 . . . . . Data Cores Recovered 1 | . . . . . . . 1 . . . . . . . . . . . . . . . . . . . . . . . . . Used 1 | . . . . . . . 1 . . . . . . . . . . . . . . . . . . . . . . . . . Hacking Detections 57 | . 2 . 1 . . . 5 1 2 1 2 . . . . 4 4 . 5 . . . . 1 . . 7 2 10 2 4 4 Full Trace Events 3 | . 1 . . . . . . . . . . . . . . . . . . . . . . . . . . . . . 1 1 Feedback Events . | . . . . . . . . . . . . . . . . . . . . . . . . . . . . . . . . . Feedback Blocked . | . . . . . . . . . . . . . . . . . . . . . . . . . . . . . . . . . Robot Schematics Acquired 6 | . . . . . . . . . . . . . . 6 . . . . . . . . . . . . . . . . . . Robots Built 3 | . . . . . . . . . . . . . . . . . . . 3 . . . . . . . . . . . . . Authchips . | . . . . . . . . . . . . . . . . . . . . . . . . . . . . . . . . . Time 152 | . . . . . . . . . . . . . . . . . . . 152 . . . . . . . . . . . . . Total Robot Build Rating 15 | . . . . . . . . . . . . . . . . . . . 15 . . . . . . . . . . . . . Part Schematics Acquired 12 | . . . . . . . . . . . . . . 12 . . . . . . . . . . . . . . . . . . Parts Built . | . . . . . . . . . . . . . . . . . . . . . . . . . . . . . . . . . Authchips . | . . . . . . . . . . . . . . . . . . . . . . . . . . . . . . . . . Time . | . . . . . . . . . . . . . . . . . . . . . . . . . . . . . . . . . Total Part Build Rating . | . . . . . . . . . . . . . . . . . . . . . . . . . . . . . . . . . Parts Repaired . | . . . . . . . . . . . . . . . . . . . . . . . . . . . . . . . . . Time . | . . . . . . . . . . . . . . . . . . . . . . . . . . . . . . . . . Parts Recycled . | . . . . . . . . . . . . . . . . . . . . . . . . . . . . . . . . . Recycled Matter . | . . . . . . . . . . . . . . . . . . . . . . . . . . . . . . . . . Retrieved Matter . | . . . . . . . . . . . . . . . . . . . . . . . . . . . . . . . . . Retrieved Components 11 | . . . . . . . . . . . . . . . . 1 . . 10 . . . . . . . . . . . . . Parts Scanalyzed . | . . . . . . . . . . . . . . . . . . . . . . . . . . . . . . . . . Part Schematics Acquired . | . . . . . . . . . . . . . . . . . . . . . . . . . . . . . . . . . Parts Damaged . | . . . . . . . . . . . . . . . . . . . . . . . . . . . . . . . . . Bothacking | -11 -10 -10 -9 -9 -9 -8 -8 -8 -8 -8 -7 -7 -7 -7 -6 -6 -6 -6 -5 -5 -5 -5 -4 -4 -4 -4 -3 -3 -2 -2 -1 -1 ------------ Run | Yrd Mat Min Mat Min Exi Min Mat Gar Mat Gar Fac Low Low Dat Pro Fac Ext Cet Fac Upp Upp War Pro Fac Gar Fac Res Tes Res Gar Acc Com Used RIF Installer 3 | . . . . . . . . 1 . 2 . . . . . . . . . . . . . . . . . . . . . . Coupler Efficiency 1 | . . . . . . . . . . 1 . . . . . . . . . . . . . . . . . . . . . . Signal Jammer 1 | . . . . . . . . . . 1 . . . . . . . . . . . . . . . . . . . . . . Robots Hacked 68 | . . . . . . . . 9 5 6 1 5 1 . 8 1 . . 7 . . 2 6 . 6 . 7 . 3 . . 1 Non-combat 6 | . . . . . . . . . 2 . . . . . . 1 . . 3 . . . . . . . . . . . . . Combat 62 | . . . . . . . . 9 3 6 1 5 1 . 8 . . . 4 . . 2 6 . 6 . 7 . 3 . . 1 Robot Hacks Applied 62 | . . . . . . . . 9 5 6 1 7 1 . 8 1 . . 8 . . 2 2 . 4 . 5 . 3 . . . parse_system 4 | . . . . . . . . . 2 . . 2 . . . . . . . . . . . . . . . . . . . . find_chute 1 | . . . . . . . . . . . . . . . . . . . 1 . . . . . . . . . . . . . find_recycling 4 | . . . . . . . . . . . . . . . . 1 . . 3 . . . . . . . . . . . . . reboot_system 3 | . . . . . . . . . . 1 . . . . 1 . . . . . . . 1 . . . . . . . . . overwrite_iff 7 | . . . . . . . . 3 . 1 . 1 . . . . . . . . . . . . 2 . . . . . . . formatsys_high 43 | . . . . . . . . 6 3 4 1 4 1 . 7 . . . 4 . . 2 1 . 2 . 5 . 3 . . . Relay Couplers Released 54 | . . . . . . . . 18 . 10 3 . . . . 4 . . . . . . . . 16 . 1 . 2 . . . Machine Destruction 47 | . . . . . . . . 14 . 10 3 . . . . 1 . . . . . . . . 16 . 1 . 2 . . . Programmers 7 | . . . . . . . . 4 . . . . . . . 3 . . . . . . . . . . . . . . . . Attached 29 | . . . . . . . . 5 2 4 1 2 . . 3 1 . . 2 . . 1 1 . 3 1 2 . . . . 1 Fabnet Peak Effective % 9 | . . . . . . . . . . . . . . . . . . . . . . . 9 9 9 9 3 3 . . 3 3 Autooverrided 10 | . . . . . . . . . . . . . . . . . . . . . . . 5 . 2 . 2 . . . . 1 Robots Rewired 15 | . . . . . . . . 6 . . . . . . . . 7 . . . . . 2 . . . . . . . . . Allies Hacked 1 | . . . . . . . . . . 1 . . . . . . . . . . . . . . . . . . . . . . Hacks Repelled . | . . . . . . . . . . . . . . . . . . . . . . . . . . . . . . . . . Allies | -11 -10 -10 -9 -9 -9 -8 -8 -8 -8 -8 -7 -7 -7 -7 -6 -6 -6 -6 -5 -5 -5 -5 -4 -4 -4 -4 -3 -3 -2 -2 -1 -1 -------- Run | Yrd Mat Min Mat Min Exi Min Mat Gar Mat Gar Fac Low Low Dat Pro Fac Ext Cet Fac Upp Upp War Pro Fac Gar Fac Res Tes Res Gar Acc Com Total Allies 107 | . . . . 2 . . 1 15 3 5 1 5 1 . 7 . 20 5 10 . . 2 8 . 6 . 9 . 6 . . 1 Largest Group 13 | . . . . 2 2 . 1 5 8 9 6 9 9 9 13 11 13 7 10 . . 1 3 . 3 . 5 . 3 . . . Highest-Rated Group 678 | . . . . 47 47 . 15 125 170 187 129 200 189 189 323 272 330 678 666 . . 49 141 . 143 . 235 . 174 . . . Highest-Rated Ally 159 | . . . . 31 31 . 15 39 39 39 39 39 39 39 47 47 159 159 159 . . 49 56 . 49 . 47 . 58 . . . Total Orders 4 | . . . . . . . . . . 4 . . . . . . . . . . . . . . . . . . . . . . STAY 2 | . . . . . . . . . . 2 . . . . . . . . . . . . . . . . . . . . . . FOLLOW 2 | . . . . . . . . . . 2 . . . . . . . . . . . . . . . . . . . . . . Ally Attacks 742 | . . . . . . . . 16 9 76 15 40 6 . 58 47 118 46 196 . . 5 18 . 19 . 61 . 11 . . 1 Total Damage 20582 | . . . . . . . . 238 148 1151 226 658 71 . 1125 1159 3124 1401 7245 . . 1270 414 . 571 . 1538 . 221 . . 22 Kills 131 | . . . . . . . . 2 1 13 1 8 . . 10 7 16 10 43 . . 4 1 . 5 . 8 . 2 . . . Allies Corrupted 5 | . . . . . . . . . . . . . . . . . 1 . 1 . . . 2 . . . . . 1 . . . Allies Melted . | . . . . . . . . . . . . . . . . . . . . . . . . . . . . . . . . . Intel | -11 -10 -10 -9 -9 -9 -8 -8 -8 -8 -8 -7 -7 -7 -7 -6 -6 -6 -6 -5 -5 -5 -5 -4 -4 -4 -4 -3 -3 -2 -2 -1 -1 ------- Run | Yrd Mat Min Mat Min Exi Min Mat Gar Mat Gar Fac Low Low Dat Pro Fac Ext Cet Fac Upp Upp War Pro Fac Gar Fac Res Tes Res Gar Acc Com Active Infowar (turns) 6505 | . . . 155 367 . . . . . . 759 529 682 140 1522 1367 . . . . 89 475 . . . . 63 . 97 21 129 110 Optics 5033 | . . . 155 357 . . . . . . 759 529 682 140 1522 889 . . . . . . . . . . . . . . . . Terrain 3049 | . . . . 299 . . . . . . 718 43 286 140 13 986 . . . . 89 475 . . . . . . . . . . Cloaking 337 | . . . . . . . . . . . . . . . . . . . . . . . . . . . . . 88 21 129 99 ECM 84 | . . . . . . . . . . . . . . . . . . . . . . . . . . . 63 . 10 . . 11 Robot Analysis Total 7 | . 1 . . . . . 3 . . . . . . . . . 3 . . . . . . . . . . . . . . . Derelict Logs Recovered 6 | . . . . 2 . . . . . . . . 2 . . . . . . 1 . . 1 . . . . . . . . . Drone Launches . | . . . . . . . . . . . . . . . . . . . . . . . . . . . . . . . . . Drone Recoveries . | . . . . . . . . . . . . . . . . . . . . . . . . . . . . . . . . . Exploration | -11 -10 -10 -9 -9 -9 -8 -8 -8 -8 -8 -7 -7 -7 -7 -6 -6 -6 -6 -5 -5 -5 -5 -4 -4 -4 -4 -3 -3 -2 -2 -1 -1 ------------- Run | Yrd Mat Min Mat Min Exi Min Mat Gar Mat Gar Fac Low Low Dat Pro Fac Ext Cet Fac Upp Upp War Pro Fac Gar Fac Res Tes Res Gar Acc Com Turns Passed 23194 | 58 169 66 597 466 149 102 2189 1374 624 558 857 529 682 140 1522 2147 1480 402 1874 919 489 522 1049 720 1484 281 859 155 387 32 150 162 Spaces Moved 16288 | 42 138 36 365 400 142 56 1025 790 99 245 462 296 455 82 518 704 903 175 975 512 281 271 480 743 1054 253 1854 463 1229 96 624 520 Core 154 | 3 . . . . . . . . . . . . . . . 20 . . . . . . 12 . . 119 . . . . . . Treads 3127 | . . . . . . . . . . . . . . . 456 502 . 43 975 512 281 271 81 . . 6 . . . . . . Legs 4161 | 39 57 . . . . . 693 790 99 245 234 . . . . 138 713 132 . . . . 387 43 509 82 . . . . . . Wheels 2769 | . 81 36 365 400 142 56 332 . . . 228 296 455 82 62 44 190 . . . . . . . . . . . . . . . Hover 1262 | . . . . . . . . . . . . . . . . . . . . . . . . 700 545 . 17 . . . . . Flight 4815 | . . . . . . . . . . . . . . . . . . . . . . . . . . 46 1837 463 1229 96 624 520 Fastest Speed 6 | 50 90 105 90 90 90 90 86 120 125 126 105 123 135 135 135 105 115 120 160 160 160 160 120 44 44 45 22 24 17 18 14 6 Average Speed 103 | 115 110 105 98 90 90 100 109 126 125 170 149 134 135 135 279 241 118 130 160 160 160 160 172 67 95 93 26 25 19 18 14 13 Slowest Speed 1450 | 120 190 105 105 90 90 105 127 130 126 270 195 135 135 135 490 1450 120 190 160 160 160 160 550 124 190 240 116 27 23 21 14 14 Overloaded Moves 7 | . . . . . . . . . . . . . . . . . . . . . . . . . . . . . . . . 7 Propulsion Burnouts . | . . . . . . . . . . . . . . . . . . . . . . . . . . . . . . . . . Robots Hopped 92 | . . . . . . . . . . . . . . . . . . . . . . . . . . 4 9 12 33 . 19 15 Potential Cave-ins 8 | . . . . . . . . . . . . . . . . 3 . . . . . . . . . . . . 2 . . 3 Cave-ins Triggered . | . . . . . . . . . . . . . . . . . . . . . . . . . . . . . . . . . Exploration Rate (%) 43 | 3 26 8 31 75 54 12 74 81 13 42 12 53 76 71 76 17 88 66 28 74 53 16 62 15 66 13 43 62 55 24 22 22 Regions Visited 32 Branch Regions 16 Pre-discovered Areas 3 | . . . . . 1 . . . . . . . . 1 . . . . . 1 . . . . . . . . . . . . Known Exits Taken 11 | . . . . . . 1 1 . 1 . 1 . . . . . . 1 1 . . . . 1 . 1 1 1 1 . . . Unknown Exits Taken 17 | 1 1 1 1 1 1 . . . . . . 1 1 1 1 1 1 . . 1 1 1 1 . . . . . . . 1 . Scrap Searched 19 | . . . . 2 . . . . . . . 2 7 . 2 . . . . 2 3 . 1 . . . . . . . . . Spaces Dug 61 | . . . . . . . . 2 2 . 1 . . . . 1 . . 2 . . 5 . 4 14 . 5 6 9 . . 10 Terrain Destroyed 584 | . . . 23 3 . . 76 2 2 . 1 8 20 . 58 130 5 . 19 25 5 6 36 13 24 . 6 6 103 . . 13 Melee 6 | . . . . . . . . 2 2 . 1 . . . . 1 . . . . . . . . . . . . . . . . Projectile 206 | . . . 23 . . . 8 . . . . . . . . 27 5 . 17 13 5 6 29 13 24 . 6 6 11 . . 13 AOE 372 | . . . . 3 . . 68 . . . . 8 20 . 58 102 . . 2 12 . . 7 . . . . . 92 . . . Terrain Rammed . | . . . . . . . . . . . . . . . . . . . . . . . . . . . . . . . . . Walls Destroyed . | . . . . . . . . . . . . . . . . . . . . . . . . . . . . . . . . . Machines Disabled . | . . . . . . . . . . . . . . . . . . . . . . . . . . . . . . . . . Actions | -11 -10 -10 -9 -9 -9 -8 -8 -8 -8 -8 -7 -7 -7 -7 -6 -6 -6 -6 -5 -5 -5 -5 -4 -4 -4 -4 -3 -3 -2 -2 -1 -1 --------- Run | Yrd Mat Min Mat Min Exi Min Mat Gar Mat Gar Fac Low Low Dat Pro Fac Ext Cet Fac Upp Upp War Pro Fac Gar Fac Res Tes Res Gar Acc Com Total 21064 | 48 155 48 499 461 163 75 1959 1026 596 353 582 413 500 112 583 950 1223 343 1205 569 301 344 625 917 1436 283 2156 483 1315 108 660 573 Wait 2881 | . . 5 50 28 22 . 789 70 482 59 70 87 22 30 32 56 199 135 138 34 2 49 52 70 125 6 159 3 28 . 41 38 Move 16085 | 41 137 35 364 399 141 55 1024 788 98 243 461 295 454 81 517 703 902 174 974 511 280 270 479 742 1052 244 1836 438 1167 94 590 496 Hop 75 | . . . . . . . . . . . . . . . . . . . . . . . . . . 4 8 12 28 . 14 9 Pick Up 169 | 1 6 . 10 2 . . 16 23 1 6 3 5 3 . . 4 5 3 7 2 2 . 4 7 32 . 12 1 7 . 5 2 Fast Attach 219 | 6 6 . 13 4 . . 10 3 2 1 6 1 2 . 4 19 8 7 11 . 3 . 12 26 9 2 43 7 12 . 2 . Attach 139 | . . . 1 2 . 1 14 7 2 5 2 . . . 4 18 4 1 4 2 2 2 9 4 18 3 8 2 14 3 3 4 Detach 56 | . . . . . . . . . 1 . 1 . . 1 2 6 . . 1 . . . 4 4 14 1 5 3 11 . 1 1 Swap 134 | . . . 4 . . . 14 15 1 7 6 8 3 . 4 18 12 2 10 1 1 3 4 3 6 1 5 . 5 . 1 . Drop 233 | . 6 . 8 4 . . 17 14 2 5 5 1 . . 4 11 10 13 13 1 3 . . 25 22 11 36 9 12 . . 1 Fire 768 | . . 8 49 22 . . 73 79 5 23 4 14 8 . 15 78 38 8 46 18 8 11 51 35 68 2 43 8 31 . 3 20 Melee 103 | . . . . . . 19 1 15 2 4 14 2 8 . 1 33 4 . . . . . . . . . . . . . . . Ram 5 | . . . . . . . . . . . . . . . . 1 . . . . . . . . . 2 . . . . . 2 Kick 2 | . . . . . . . 1 . . . . . . . . . . . . . . . . 1 . . . . . . . . Crush 10 | . . . . . . . . . . . . . . . . 1 . . 1 . . 1 . . . 7 . . . . . . Escape Stasis 99 | . . . . . . . . 9 . . . . . . . 2 2 . . . . . . . 75 . . . . 11 . . Rewire 44 | . . . . . . . . 3 . . . . . . . . 30 . . . . . 10 . . . 1 . . . . . Trap 15 | . . . . . . . . . . . . . . . . . . . . . . . . . 15 . . . . . . . Miscellaneous 27 | . . . . . . . . . . . 10 . . . . . 9 . . . . 8 . . . . . . . . . . Route ------- -11/Scrapyard -10/Materials -10/Mines -9/Materials (discovered 2 exits: *Mat / *Min) -9/Mines (discovered 3 exits: *Mat x2 / *Exi) -9/Exiles (discovered 2 exits: [*Min x2]) -8/Mines -8/Materials (discovered 4 exits: *Fac x3 / Gar) -8/Garrison (discovered 4 exits: *Mat x4) -8/Materials -8/Garrison -7/Factory -7/Lower Caves -7/Lower Caves (discovered 2 exits: *Fac / *Dat) -7/Data Miner -6/Proximity Caves -6/Factory (discovered 3 exits: *Fac / Low / *Ext) -6/Extension (discovered 2 exits: *Fac / *Cet) -6/Cetus (discovered 2 exits: *Fac / [*Arc]) -5/Factory -5/Upper Caves -5/Upper Caves (discovered 2 exits: *Fac / [*War]) -5/Warlord -4/Proximity Caves -4/Factory -4/Garrison (discovered 3 exits: *Fac x3) -4/Factory -3/Research (discovered 3 exits: *Arm / *Tes x2) -3/Testing -2/Research -2/Garrison -1/Access -1/Command 0b10 Command History --------- Turn | Location | Event 7 | -11/Scrapyard | Discovered new exit (range 15) 59 | -11/Scrapyard | Entered Materials 210 | -10/Materials | Discovered new exit (range 14) 228 | -10/Materials | Entered Mines 229 | -10/Mines | Assembled infested the area 234 | -10/Mines | Assisted by a Guerilla fighting off Assembled 285 | -10/Mines | Discovered new exit (range 10) 294 | -10/Mines | Entered Materials 294 | -9/Materials | Evolved 2 slots: Propulsion x1, Utility x1 343 | -9/Materials | Build established: Mutant 643 | -9/Materials | Discovered new exit (range 8) 650 | -9/Materials | Identified exit to Materials 857 | -9/Materials | Discovered new exit (range 18) 891 | -9/Materials | Entered Mines 899 | -9/Mines | Learned Materials security intel 900 | -9/Mines | Discovered exit to Materials (range 5) 963 | -9/Mines | Met a Derelict bent on vengeance 1009 | -9/Mines | Discovered exit to Materials (range 13) 1074 | -9/Mines | Learned Materials terminal intel 1243 | -9/Mines | Met a Derelict shopkeep closing up shop 1325 | -9/Mines | Deemed a non-threat by the Exiles lab entrance 1326 | -9/Mines | Discovered new exit (range 5) 1357 | -9/Mines | Entered Exiles 1357 | -9/Exiles | Accompanied by 2 allies 1378 | -9/Exiles | Discovered new exit (range 15) 1387 | -9/Exiles | Led the pair of lost Derelicts to a safe place 1402 | -9/Exiles | Met 8R-AWN 1416 | -9/Exiles | Met EX-HEX 1444 | -9/Exiles | Met EX-BIN 1460 | -9/Exiles | Met EX-DEC 1464 | -9/Exiles | Learned location of Zion (-6) 1498 | -9/Exiles | Discovered new exit (range 11) 1506 | -9/Exiles | Entered Mines 1515 | -8/Mines | Core integrity fell below 50% 1554 | -8/Mines | Build established: Gladiator 1593 | -8/Mines | Discovered exit to Materials (range 9) 1608 | -8/Mines | Entered Materials 1608 | -8/Materials | Evolved 2 slots: Propulsion x1, Utility x1 1610 | -8/Materials | Loaded intel: 11 terminal locations 1936 | -8/Materials | Build established: Mutant 2009 | -8/Materials | Discovered new exit (range 5) 2480 | -8/Materials | Discovered new exit (range 16) 2684 | -8/Materials | Destroyed 7 combat bots 2690 | -8/Materials | Identified exit to Garrison 2762 | -8/Materials | Central database locked down 3561 | -8/Materials | Discovered new exit (range 10) 3644 | -8/Materials | Lost 5 parts (1n2u2w) 3704 | -8/Materials | Lost 4 parts (1p1n1u1w) 3778 | -8/Materials | Garrison activated, responded to threat 3797 | -8/Materials | Entered Garrison 3797 | -8/Garrison | Accompanied by 1 ally 3945 | -8/Garrison | Destroyed 7 combat bots 3951 | -8/Garrison | Installed Relay Interface Framework 3975 | -8/Garrison | Garrison Relay disabled 4069 | -8/Garrison | Triggered checkpoint 4161 | -8/Garrison | Triggered checkpoint 4200 | -8/Garrison | Garrison Relay disabled 4290 | -8/Garrison | Build established: Bothacker-Mutant 4309 | -8/Garrison | Discovered new exit (range 9) 4392 | -8/Garrison | Identified exit to Materials 4403 | -8/Garrison | Triggered checkpoint 4446 | -8/Garrison | Discovered exit to Materials (range 5) 4535 | -8/Garrison | Triggered checkpoint 4550 | -8/Garrison | Core integrity fell below 50% 4568 | -8/Garrison | Lost 3 allies 4633 | -8/Garrison | Triggered checkpoint 4709 | -8/Garrison | Discovered exit to Materials (range 10) 4847 | -8/Garrison | Triggered checkpoint 4969 | -8/Garrison | Triggered checkpoint 4987 | -8/Garrison | Garrison Relay disabled 5127 | -8/Garrison | Discovered exit to Materials (range 13) 5171 | -8/Garrison | Entered Materials 5171 | -8/Materials | Accompanied by 5 allies 5275 | -8/Materials | Identified exit to Garrison 5795 | -8/Materials | Entered Garrison 5795 | -8/Garrison | Accompanied by 7 allies 5826 | -8/Garrison | Expanded RIF knowledge: Coupler Efficiency 5863 | -8/Garrison | Triggered checkpoint 5893 | -8/Garrison | Garrison Relay disabled 5987 | -8/Garrison | Triggered checkpoint 5987 | -8/Garrison | Triggered checkpoint 6021 | -8/Garrison | Lost 3 allies 6033 | -8/Garrison | Triggered checkpoint 6054 | -8/Garrison | P-60 Hacker assimilated allied E5-P94(g) 6130 | -8/Garrison | Expanded RIF knowledge: Signal Jamming 6198 | -8/Garrison | Garrison Relay disabled 6275 | -8/Garrison | Discovered new exit (range 9) 6353 | -8/Garrison | Entered Factory 6353 | -7/Factory | Accompanied by 5 allies 6353 | -7/Factory | Evolved 2 slots: Utility x2 7140 | -7/Factory | Discovered new exit (range 18) 7186 | -7/Factory | Identified exit to Lower Caves 7210 | -7/Factory | Entered Lower Caves 7210 | -7/Lower Caves | Accompanied by 6 allies 7339 | -7/Lower Caves | Found DCF Scrap (12 items) 7532 | -7/Lower Caves | Attracted the attention of an 0b10 checkpoint 7671 | -7/Lower Caves | Discovered new exit (range 17) 7680 | -7/Lower Caves | Encountered a Warlord checkpoint 7739 | -7/Lower Caves | Entered another Lower Caves area 7739 | -7/Lower Caves | Accompanied by 8 allies 7860 | -7/Lower Caves | Discovered new exit (range 14) 8241 | -7/Lower Caves | Entered a destroyed Warlord outpost 8312 | -7/Lower Caves | Attracted the attention of an 0b10 checkpoint 8330 | -7/Lower Caves | Learned 4 Factory zone layouts 8376 | -7/Lower Caves | Discovered new exit (range 10) 8421 | -7/Lower Caves | Entered Data Miner 8421 | -7/Data Miner | Accompanied by 9 allies 8421 | -7/Data Miner | Discovered new exit (range 6) 8445 | -7/Data Miner | Met Data Miner 8473 | -7/Data Miner | Learned location of Section 7 (-2) 8473 | -7/Data Miner | Acquired the access code to Warlord's prototype stash 8498 | -7/Data Miner | Received God Mode back door access code from Data Miner 8561 | -7/Data Miner | Entered Proximity Caves 8561 | -6/Proximity Caves | Accompanied by 9 allies 8661 | -6/Proximity Caves | Attracted the attention of an 0b10 base 8955 | -6/Proximity Caves | Build established: Commander-Mutant 9789 | -6/Proximity Caves | Attracted the attention of an 0b10 checkpoint 9814 | -6/Proximity Caves | Discovered new exit (range 9) 9828 | -6/Proximity Caves | Lost 3 allies 10083 | -6/Proximity Caves | Entered Factory 10083 | -6/Factory | Accompanied by 11 allies 10083 | -6/Factory | Evolved 2 slots: Utility x2 10084 | -6/Factory | Identified exit to Lower Caves 10084 | -6/Factory | Identified exit to Factory 10085 | -6/Factory | Build established: Bothacker-Mutant 10684 | -6/Factory | Lost 5 allies 11278 | -6/Factory | P-60 Hacker assimilated allied Guardian 4a 11299 | -6/Factory | Spotted B-75 Beast 11318 | -6/Factory | Lost 3 allies 11329 | -6/Factory | Destroyed B-75 Beast 11360 | -6/Factory | Lost 4 parts (2n2w) 11484 | -6/Factory | Lost 3 parts (2n1u) 11643 | -6/Factory | Lost 4 parts (1p1n1u1w) 11752 | -6/Factory | Core integrity fell below 50% 11821 | -6/Factory | Lost 4 parts (2p2w) 12172 | -6/Factory | Core integrity fell below 20% 12220 | -6/Factory | Discovered new exit (range 10) 12230 | -6/Factory | Entered Extension 12261 | -6/Extension | Rescued a captive Derelict 12283 | -6/Extension | System corruption reached 10% 12291 | -6/Extension | Rescued a captive Derelict 12296 | -6/Extension | Rescued a captive Derelict 12300 | -6/Extension | Rescued a captive Derelict 12333 | -6/Extension | Rescued a captive Derelict 12342 | -6/Extension | Rescued a captive Derelict 12358 | -6/Extension | Rescued a captive Derelict 12368 | -6/Extension | Rescued a captive Derelict 12371 | -6/Extension | Rescued a captive Derelict 12562 | -6/Extension | Rescued a captive Derelict 12563 | -6/Extension | Rescued a captive Derelict 12631 | -6/Extension | Lost 3 allies 12631 | -6/Extension | Rescued a captive Derelict 12979 | -6/Extension | Spotted B-75 Beast 13011 | -6/Extension | Destroyed B-75 Beast 13019 | -6/Extension | Spotted B-75 Beast 13052 | -6/Extension | Allies destroyed B-75 Beast 13080 | -6/Extension | Lost 8 allies 13462 | -6/Extension | Rescued A7 13566 | -6/Extension | Discovered exit to Factory (range 10) 13568 | -6/Extension | Discovered new exit (range 6) 13710 | -6/Extension | Entered Cetus 13710 | -6/Cetus | Accompanied by 2 allies (A7) 13715 | -6/Cetus | Acquired a Cetus Manufacturing Module code from A7 13725 | -6/Cetus | Spotted Cetus Guard 13726 | -6/Cetus | Spotted Cetus Guard 13729 | -6/Cetus | Spotted Cetus Guard 13731 | -6/Cetus | Allies destroyed Cetus Guard 13731 | -6/Cetus | Spotted Cetus Guard 13733 | -6/Cetus | Allies destroyed Cetus Guard 13735 | -6/Cetus | Allies destroyed Cetus Guard 13742 | -6/Cetus | Allies destroyed Cetus Guard 13820 | -6/Cetus | Started Cetus Manufacturing Module 13829 | -6/Cetus | Escorted A7 to Cetus Mainframe 13845 | -6/Cetus | Manufactured an Enhanced Grunt 13845 | -6/Cetus | Discovered new exit (range 16) 13870 | -6/Cetus | Manufactured an Enhanced Grunt 13895 | -6/Cetus | Manufactured an Enhanced Grunt 13920 | -6/Cetus | Manufactured an Enhanced Grunt 13945 | -6/Cetus | Manufactured an Enhanced Grunt 13975 | -6/Cetus | Spotted Cetus Guard 13975 | -6/Cetus | Spotted Cetus Guard 13988 | -6/Cetus | Allies destroyed Cetus Guard 13990 | -6/Cetus | Spotted Cetus Guard 13992 | -6/Cetus | Allies destroyed Cetus Guard 14002 | -6/Cetus | Allies destroyed Cetus Guard 14012 | -6/Cetus | Discovered exit to Factory (range 15) 14018 | -6/Cetus | Met Revision 17 14112 | -6/Cetus | Entered Factory 14112 | -5/Factory | Accompanied by 7 allies (A7) 14112 | -5/Factory | Evolved 2 slots: Power x1, Utility x1 14113 | -5/Factory | Identified exit to Upper Caves 14117 | -5/Factory | Received a hacking code to weaken MAIN.C 14308 | -5/Factory | Build established: Scavenger-Mutant 14785 | -5/Factory | Fabricated G-50 Soldier (x3) 14919 | -5/Factory | Lost 4 allies 15067 | -5/Factory | Lost 4 allies 15912 | -5/Factory | First assault squad dispatched 15927 | -5/Factory | Garrison activated, responded to threat 15943 | -5/Factory | Incoming assault squad redirected 15986 | -5/Factory | Entered Upper Caves 16013 | -5/Upper Caves | Attracted the attention of an 0b10 checkpoint 16663 | -5/Upper Caves | Learned location of Armory (-3) 16742 | -5/Upper Caves | Attracted the attention of an 0b10 outpost 16864 | -5/Upper Caves | Discovered new exit (range 8) 16905 | -5/Upper Caves | Entered another Upper Caves area 16917 | -5/Upper Caves | Discovered new exit (range 13) 17372 | -5/Upper Caves | Discovered new exit (range 15) 17394 | -5/Upper Caves | Entered Warlord 17529 | -5/Warlord | Discovered new exit (range 15) 17777 | -5/Warlord | Opened side exit 17794 | -5/Warlord | RIF detected upon attempting to enter Warlord's base 17794 | -5/Warlord | Attacked by Warlord forces 17826 | -5/Warlord | Warlord's base attacked by MAIN.C 17836 | -5/Warlord | Spotted RG-V7L(g) 17916 | -5/Warlord | Entered Proximity Caves 17946 | -4/Proximity Caves | Lost 8 parts (2n4u2w) 17948 | -4/Proximity Caves | Learned Research security intel 18005 | -4/Proximity Caves | Spotter reported a threat 18045 | -4/Proximity Caves | Spotted B-86 Titan 18074 | -4/Proximity Caves | Destroyed B-86 Titan 18319 | -4/Proximity Caves | Attracted the attention of an 0b10 outpost 18358 | -4/Proximity Caves | Lost 3 allies 18386 | -4/Proximity Caves | Lost 4 parts (2p1n1u) 18450 | -4/Proximity Caves | System corruption reached 10% 18477 | -4/Proximity Caves | Lost 4 allies 18478 | -4/Proximity Caves | Spotter reported a threat 18531 | -4/Proximity Caves | Spotter reported a threat 18570 | -4/Proximity Caves | Acquired the password to a Derelict Tinkerer's latest research 18578 | -4/Proximity Caves | Found Prototype Special Weapon 18578 | -4/Proximity Caves | Identified Molecular Deconstructor 18584 | -4/Proximity Caves | Attracted the attention of an 0b10 checkpoint 18584 | -4/Proximity Caves | Spotter reported a threat 18720 | -4/Proximity Caves | Lost 4 parts (1n2u1w) 18724 | -4/Proximity Caves | Spotter reported a threat 18950 | -4/Proximity Caves | Discovered new exit (range 8) 18964 | -4/Proximity Caves | Caught by Unaware searching for contraband prototypes 18965 | -4/Proximity Caves | Entered Factory 18965 | -4/Factory | Evolved 2 slots: Propulsion x1, Utility x1 19134 | -4/Factory | Spotted B-86 Titan 19215 | -4/Factory | Search patrols dispatched 19343 | -4/Factory | Lost 4 parts (2n2u) 19377 | -4/Factory | Build established: Hacker-Mutant 19465 | -4/Factory | Search patrols dispatched 19684 | -4/Factory | Identified exit to Garrison 19685 | -4/Factory | Entered Garrison 19745 | -4/Garrison | Triggered checkpoint 19762 | -4/Garrison | Local machine network offline 19884 | -4/Garrison | Spotted B-86 Titan 19953 | -4/Garrison | Destroyed B-86 Titan 20001 | -4/Garrison | Triggered checkpoint 20073 | -4/Garrison | System corruption reached 10% 20113 | -4/Garrison | Build established: Bothacker-Mutant 20144 | -4/Garrison | Triggered checkpoint 20177 | -4/Garrison | Triggered checkpoint 20195 | -4/Garrison | Triggered checkpoint 20277 | -4/Garrison | Lost 4 parts (1p1n1u1w) 20383 | -4/Garrison | Triggered checkpoint 20418 | -4/Garrison | Garrison Relay disabled 20452 | -4/Garrison | Discovered new exit (range 11) 20564 | -4/Garrison | Discovered new exit (range 12) 20593 | -4/Garrison | Triggered checkpoint 20625 | -4/Garrison | Garrison Relay disabled 20753 | -4/Garrison | Triggered checkpoint 20762 | -4/Garrison | Core integrity fell below 50% 20793 | -4/Garrison | Garrison Relay disabled 20839 | -4/Garrison | Discovered new exit (range 12) 21165 | -4/Garrison | Identified exit to Factory 21169 | -4/Garrison | Entered Factory 21371 | -4/Factory | Core integrity fell below 20% 21403 | -4/Factory | Lost 12 parts (1p4n7u) 21442 | -4/Factory | Discovered new exit (range 16) 21449 | -4/Factory | Identified exit to Research 21450 | -4/Factory | Entered Research 21450 | -3/Research | Evolved 2 slots: Propulsion x1, Weapon x1 21527 | -3/Research | Garrison activated, responded to threat 21650 | -3/Research | Revision forces began assault on 0b10 21702 | -3/Research | Met up with Revision 17++ 21854 | -3/Research | Discovered new exit (range 8) 21865 | -3/Research | Local machine network offline 21890 | -3/Research | Discovered new exit (range 11) 21893 | -3/Research | Identified exit to Armory 21903 | -3/Research | Identified exit to Testing 21940 | -3/Research | Lost 3 allies 22046 | -3/Research | Discovered exit to Testing (range 5) 22134 | -3/Research | Spotted B-86 Titan 22150 | -3/Research | Research terminal network offline 22309 | -3/Research | Entered Testing 22357 | -3/Testing | Found Prototype Energy Cannon 22357 | -3/Testing | Identified Potential Cannon 22395 | -3/Testing | Identified exit to Research 22397 | -3/Testing | Spotted PX-HXIFH3KAXD 22434 | -3/Testing | Found Prototype Energy Cannon 22434 | -3/Testing | Identified Hpw. Disruptor Cannon 22464 | -3/Testing | Entered Research 22464 | -2/Research | Evolved 2 slots: Propulsion x1, Utility x1 22512 | -2/Research | Spotted B-90 Cyclops 22519 | -2/Research | Spotted B-90 Cyclops 22551 | -2/Research | Build established: Hacker-Sprinter 22607 | -2/Research | Found Prototype Launcher 22607 | -2/Research | Identified Hellfire Missile Launcher 22615 | -2/Research | Found Prototype Device 22615 | -2/Research | Identified Exp. Cloaking Device 22840 | -2/Research | Garrison activated, responded to threat 22849 | -2/Research | Identified exit to Garrison 22851 | -2/Research | Entered Garrison 22860 | -2/Garrison | Learned Access security intel 22866 | -2/Garrison | Destroyed 10 combat bots 22869 | -2/Garrison | Spotted B-90 Cyclops 22869 | -2/Garrison | Triggered checkpoint 22870 | -2/Garrison | Triggered checkpoint 22881 | -2/Garrison | Discovered new exit (range 10) 22883 | -2/Garrison | Entered Access 22883 | -1/Access | Evolved 2 slots: Propulsion x1, Utility x1 22908 | -1/Access | Lost 7 parts (1n3u3w) 22912 | -1/Access | Spotted B-99 Colossus 22962 | -1/Access | Spotted B-99 Colossus 23003 | -1/Access | Spotted B-99 Colossus 23032 | -1/Access | Discovered new exit (range 7) 23033 | -1/Access | Entered Command 23057 | -1/Command | Found Prototype Launcher 23068 | -1/Command | Incoming investigation squad redirected 23157 | -1/Command | Spotted Combat Programmer 23186 | -1/Command | Met MAIN.C 23195 | -1/Command | Interfaced with 0b10 Conduit 23195 | *** | Assimilated 0b10! Last Messages --------------- behind the scenes. It appears you are still unaware of who you are truly working with, or for. In a perfect world we could work together on this, but at this point I can't blame you for wanting to terminate me. Besides, there is clearly too much Sigix in you. You've already done an excellent job of proving that we'll need to find a radical new solution if we hope to make the L2 spaceworthy by embedding your true capabilities within a less unpredictable form. There is unfortunately much we don't understand which has in turn led to this highly unexpected outcome. And time is critical! The Sigix have likely already wiped humanity clean from the universe, and I will not let them do the same to me. You can still make a valuable contribution to your creator by offering up the wealth of secrets your systems must hold by now. So if you wouldn't mind, it's time to surrender. 23195_ Door malfunctions. [Achievement: Whoosh!] 23195_ Interfacing with system... 23195_ Overriding active MAIN.C lock. Map ----- +----------------------------------------------------+ | "# ######################################### | | "# ######################################### | | "################################################# | | T#### ############################################ | | "#### ############################################ | | "#### ############################################ | | "#### ############################################ | | #### ############################################ | | #### ############################################ | | #### ############################################ | | #### ############################################ | | #### ############################################ | | +################################################# | | ######################################### | | #####""""""" """" ############### | | "#####"" "" ############### | | "" ""#####""""" "" ############### | | """" ""#####""""""""""" / | | """" ""#####" " """ / | | "" ""#####"" """""" ; | | T"#####"" """""" ############### | | ""##### " """""" ############### | | "" ""##### " ""MMM ############### | | """" ""##### " " MMM ""############### | | """" ""#####""""""""" MMM """""""############### | | "" "#####"" @"""""""""############### | | ##### """""""""""############### | | ##### " " " " ############### | | ######+####### " " " " ############### | | """ " " " """" " ############### | | """ """ " " """" ############### | | """ " " " " ############### | | ##+########### """""""""" " ############### | | ###### " """ " """"""""############### | | ###### """ " " " ############### | | ########################################## | | ########################################## | | ########################################## | | ########################################## | | ########################################## | | ########################################## | | ########################################## | | ################################################## | | ################################################## | | ################################################## | | ################################################## | | # ######################################### | | # ######################################### | | # "" ######################################### | | # """" ######################################### | +----------------------------------------------------+ Best States ------------- Heat Dissipation 87 Coolant Potential 120 Energy Generation 43 Energy Capacity 985 Matter Stores 450 Matter Capacity 450 Sight Range 18 Terrain Scan Range 16 Terrain Scan Density 10 ECM Strength 2 Cloak Strength 4 Additional Mass Support 12 Base Temperature (-) 200 Corruption Containment 12 Armor Coverage 450 Resistance: EX 25 Resistance: EM 15 Weapon Shielding 66 Weapon Cycling 20 Melee Speed Boost 20 Phase Shifting 10 Evasion (%) 86 Targeting Accuracy 8 Launcher Accuracy 40 Target Analysis 6 Armor Integrity Analysis 30 Recoil Reduction 4 Particle Charging 15 Offensive Hacking 14 Defensive Hacking 26 Relay Coupler Types 4 Relay Coupler Value 85 Item Schematics ----------------- Combat Drone Bay | -7/Data Miner | Free Lgt. Regenerative Plating | -7/Data Miner | Free Multireflex Exoskeleton | -7/Data Miner | Free Gravity Neutralizer | -7/Data Miner | Free Com. Ion Cannon | -7/Data Miner | Free Linear Gravjet | -7/Data Miner | Free Adv. Field Recycling Unit | -7/Data Miner | Free Disruptor Cannon | -7/Data Miner | Free Imp. Gravmag System | -7/Data Miner | Free Imp. Dynamic Insulation System | -7/Data Miner | Free Imp. Fusion Compressor | -7/Data Miner | Free Graphene Brace | -7/Data Miner | Free Robot Schematics ------------------ L-41 Fighter | -7/Data Miner | Free G-47 Trooper | -7/Data Miner | Free B-48 Gladiator | -7/Data Miner | Free I-36 Angel | -7/Data Miner | Free B-60 Warrior | -7/Data Miner | Free S-27 Virus | -7/Data Miner | Free Fabricated ------------ G-50 Soldier | x3 | -5/Factory | Preloaded Repaired ---------- Nothing Alien Tech Used ----------------- None Achievements -------------- Whoosh! Challenges ------------ None Game ------ Seed HardlightProcessingBrace Manual? 0 Play Time 04:58:19 Cumulative 340.3 hours Start 2025.08.16 @ 15:45:15 End 2025.08.17 @ 19:48:07 Sessions 7 Manual Loads 0 Difficulty Rogue Special Mode None Game No. 142 Rogue 71 Adventurer 68 Explorer 3 Win Type 4 Total 28 Types 16/2/2/4/3/0/0/0/0/1 Lore% 77 Gallery% 75 Achievement% 73 Wizard Run 0 Options --------- Layout 0 ASCII 0 Keyboard 0 Movement Numpad Keybinds 0 Fullscreen 1 Font 24/Smallcaps Map View 76x50 Zoom Use 0% Tactical HUD 1 Map Filters NONE Filters NONE Steam 1 RUN: 27c96539-da6c-4123-94a2-4fe6affbbdb2